Workbook

Sheet Info
B2: ELENCO DELLE UNITÁ DI VENTILAZIONE MECCANICA | H2: PRODUKTLISTE DER WOHNRAUMLÜFTUNGSGERÄTE
B3: Questo elenco è stato creato dall’Agenzia CasaClima con l’unico scopo di semplificare e standardizzare l’inserimento delle unità di ventilazione meccanica nel calcolo CasaClima. I valori caratteristici sono stati determinati da un istituto di prova accreditato, non dall'Agenzia KlimaHaus, che si limita a visionare i rapporti di prova e ad inserire i valori. L'Agenzia KlimaHaus si riserva il diritto di modificare i dati dell'elenco per migliorare la coerenza con l'algoritmo di calcolo, ma sempre in conformità ai rapporti di prova e alle norme vigenti. | H3: Diese von der KlimaHaus Agentur erstellte Liste, dient nur zur Vereinfachung und Vereinheitlichung der erforderlichen technischen Kennwerte der Lüftungseinheiten für die KlimaHaus Berechnung. Die Kennwerte wurden von einem akkreditierten Prüfinstitut festgestellt, nicht von der Agentur. Die Agentur nimmt nur Einsicht in die Prüfberichte und übernimmt die Kennwerte. Die Agentur behält sich vor, die Daten in der Liste in Übereinstimmung mit den Prüfberichten und geltenden Normen zu ändern, um die Kohärenz mit dem Berechnungsalgorithmus zu verbessern. | P3: Δ
B4: REQUISITI DEI PRODOTTI | H4: ANFORDERUNGEN AN DIE PRODUKTE
B5: Gli unità di ventilazione devono essere testati secondo EN 13141-7/-8. La richiesta di inserimento di un'unità nell'elenco e nel database ProCasaClima può essere fatta solo dal produttore. | H5: Die Lüftungseinheiten müssen nach EN 13141-7/-8 geprüft sein. Der Antrag zur Aufnahme einer Lüftungseinheit in Liste und Datenbank ProCasaClima kann nur durch den Hersteller erfolgen.
B6: UTILIZZO DELLA LISTA | H6: VERWENDUNG DER LISTE
B7: Type 1: | C7: DUCTED | D7: - unità canalizzate | H7: Type 1: | I7: DUCTED | J7: - luftgeführte Einheit (zentral)
B8: Type 2: | C8: non DUCTED | D8: - unità non canalizzate con flusso continuo | H8: Type 2: | I8: non DUCTED | J8: - nicht luftgeführte Einheit (dezentral), kontinuierlich
B9: Type 3: | C9: non DUCTED ALT | D9: - unità non canalizzate con flusso alternato | H9: Type 3: | I9: non DUCTED ALT | J9: - nicht luftgeführte Einheit (dezentral), Umschaltbetrieb
B10: Type 4: | C10: DUCTED-HP | D10: - unità canalizzate con pompa di calore aria-aria | H10: Type 4: | I10: DUCTED-HP | J10: - luftgeführte Einheit mit Luft-Luft-Wärmepumpe
B11: SIMBOLI e descrizioni | H11: SYMBOLE und Erläuterungen
C12: QUALITY PRODUCT L'unità die ventilazione ha ottenuto il sigillo VMC Qualità. | I12: QUALITY PRODUCT Die Lüftungseinheit hat das Gütesiegel Qualitäts WRL erhalten.
C13: Cliccando sul Δ viene visualizzato il Quality Product Label. Ulteriori info qui: | E13: VMC Qualità | I13: Bei click auf Δ wird das Quality Product Label sichtbar. Weitere Info hier: | K13: Qualitäts WRL
B14: ɳ5,su | C14: Efficienza termica sull’aria di rinnovo corretta (nel calcolo CasaClima ≙ ɳθ) | E14: [%] | H14: ɳ5,su | I14: recup. Wirkungsgrad auf der Zuluft, korrigiert (KlimaHaus Berechnung ≙ ɳθ) | K14: [%]
B15: ɳθ,su | C15: Efficienza termica sull’aria di rinnovo | E15: [%] | H15: ɳθ,su | I15: recuperativer Wirkungsgrad auf der Zuluft | K15: [%]
B16: ɳx,su | C16: Efficienza igrometrica sull’aria di rinnovo | E16: [%] | H16: ɳx,su | I16: regenerativer Wirkungsgrad auf der Zuluft | K16: [%]
B17: SPI | C17: Assorbimento elettrico specifico, (ingl. Specific power input) | E17: [Wh/m³] | H17: SPI | I17: elektrische Leistungsaufnahme, (ingl. Specific power input) | K17: [Wh/m³]
B18: npd | C18: il valore non è stato testato (ingl. no performance determind) | H18: npd | I18: der Wert wurde nicht festgestellt (engl. no performance determind)
B19: N/A | C19: not applicabile (ingl. not available), nel calcolo inserire il valore "0" | H19: N/A | I19: nicht anwendbar (engl. not available), in der Berechnung Wert "0" eingeben
B20: contatto: astrid.schartmueller@agenziacasaclima.it | F20: Ultimo aggiornamento | H20: =NOW() -> 2024-08-20T12:19:53.190 | K20: Kontakt: astrid.schartmueller@klimahausagentur.it
B22: Nota: Le serie di norme EN 13141 e EN 13142 per le unità di ventilazione sono state aggiornate. Gli elenchi saranno aggiornati alle nuove specifiche con un adeguato periodo di transizione. | H22: Hinweis: Die Normenserie EN 13141 und EN 13142 für Lüftungseinheiten ist aktualisiert worden. Die Listen werden mit einer angemessenen Übergangszeit an die neuen Vorgaben angepasst.

Sheet Type 1_ducted
C1: Quality Product | E1: AIR VOLUME FLOW | G1: MEASURED VALUES
A2: Manufactorer | Reseller | B2: Productname | D2: Heat exchanger | E2: declared max. | F2: reference | G2: Air volume flow | H2: Temperatur ratio | I2: Humidity ratio | J2: Spezific Power Input
E3: PORTATA D'ARIA | G3: VALORI MISURATI
A4: Produttore | Rivenditore | B4: Denominazione Prodotto | C4: Prodotto Qualità | D4: Scambiatore di calore | E4: max. dicchiarata | F4: di riferimento | G4: Portata d'aria | H4: Efficienza recuperat. sensibile | I4: Efficienza recuperat. latente | J4: Potenza elettrica specifica
E5: LUFTVOLUMENSTROM | G5: GEMESSENE WERTE
A6: Hersteller | Reseller | B6: Produktbezeichnung | C6: Qualitäts Produkt | D6: Wärmetauscher | E6: max. angegeben | F6: Bezugwert | G6: Luftvolumenstrom | H6: Temperaturverhältnis | I6: Feuchteverhältnis | J6: elektr. spez. Leistungsaufnahme
E7: qvmax,d | F7: qvref | G7: qvmin/ref/max | H7: ɳθ,su | I7: ɳx,su | J7: SPI (SFP)
A8: Aldes | B8: InspirAIR HOME SC200 | D8: HRC1a - recuperative (sensible thermal energy) | E8: 200 m3/h | F8: 140 m3/h | G8: 75 m³/h | H8: 0.94 | I8: -- | J8: 0.28
G9: 181 m³/h | H9: 0.87 | I9: -- | J9: 0.36
B10: InspirAIR HOME SC240 | C10: - | D10: HRC1a - recuperative (sensible thermal energy) | E10: 200 m3/h | F10: 180 m3/h | G10: 75 m³/h | H10: 0.94 | I10: -- | J10: 0.28
G11: 181 m³/h | H11: 0.87 | I11: -- | J11: 0.36
G12: 263 m³/h | H12: 0.86 | I12: -- | J12: 0.6
B13: InspirAIR HOME SC370 | C13: - | D13: HRC1a - recuperative (sensible thermal energy) | E13: 323 m3/h | F13: 226 m3/h | G13: 70 m³/h | H13: 0.94 | I13: -- | J13: 0.29
G14: 228 m³/h | H14: 0.89 | I14: -- | J14: 0.35
G15: 322 | H15: 0.89 | I15: -- | J15: 0.58
B16: InspirAIR Top 300 classic/premium | C16: - | D16: HRC1a - recuperative (sensible thermal energy) | E16: 330 | F16: 231 | G16: 63 | H16: 0.939 | I16: -- | J16: 0.2
G17: 243 | H17: 0.899 | I17: -- | J17: 0.2
G18: 348 | H18: 0.892 | I18: -- | J18: 0.35
B19: InspirAIR Top 450 classic/premium | C19: - | D19: HRC1a - recuperative (sensible thermal energy) | E19: 470 | F19: 329 | G19: 94 | H19: 0.936 | I19: -- | J19: 0.17
G20: 345 | H20: 0.892 | I20: -- | J20: 0.3
G21: 476 | H21: 0.89 | I21: -- | J21: 0.52
A22: Buderus (Bosch Italia) | B22: Logavent HRV 156-100 K | C22: - | D22: HRC1a - recuperative (sensible thermal energy) | E22: 135 | F22: 95 | G22: 35 | H22: 0.97 | I22: -- | J22: 0.46
G23: 95 | H23: 0.93 | I23: -- | J23: 0.35
G24: 136 | H24: 0.91 | I24: -- | J24: 0.44
B25: Logavent HRV 156-100 K B | C25: - | D25: HRC1a - recuperative (sensible thermal energy) | E25: 135 | F25: 95 | G25: 30 | H25: 0.94 | I25: -- | J25: 0.52
G26: 98 | H26: 0.85 | I26: -- | J26: 0.34
G27: 133 | H27: 0.82 | I27: -- | J27: 0.44
B28: Logavent HRV 156-120 K | C28: - | D28: HRC1a - recuperative (sensible thermal energy) | E28: 165 | F28: 116 | G28: 30 | H28: 0.975 | I28: -- | J28: 0.58
G29: 115 | H29: 0.93 | I29: -- | J29: 0.36
G30: 160 | H30: 0.9 | I30: -- | J30: 0.49
B31: Logavent HRV 156-120 K B | C31: - | D31: HRC1a - recuperative (sensible thermal energy) | E31: 165 | F31: 116 | G31: 29.5 | H31: 0.94 | I31: -- | J31: 0.52
G32: 115 | H32: 0.84 | I32: -- | J32: 0.35
G33: 158 | H33: 0.82 | I33: -- | J33: 0.48
B34: Logavent HRV 176-260 | C34: - | D34: HRC1a - recuperative (sensible thermal energy) | E34: 260 | F34: 182 | G34: 50 | H34: 0.99 | I34: -- | J34: 0.34
G35: 182 | H35: 0.94 | I35: -- | J35: 0.19
G36: 258 | H36: 0.92 | I36: -- | J36: 0.25
B37: Logavent HRV 176-260 E | C37: - | D37: HRC1b - recuperative (total thermal energy) | E37: 260 | F37: 182 | G37: 50 | H37: 0.96 | I37: 0.7 | J37: 0.35
G38: 182 | H38: 0.85 | I38: 0.61 | J38: 0.18
G39: 260 | H39: 0.81 | I39: 0.54 | J39: 0.24
B40: Logavent HRV 176-450 | C40: - | D40: HRC1a - recuperative (sensible thermal energy) | E40: 450 | F40: 315 | G40: 50 | H40: 0.99 | I40: -- | J40: 0.34
G41: 315 | H41: 0.9 | I41: -- | J41: 0.23
G42: 450 | H42: 0.87 | I42: -- | J42: 0.37
B43: Logavent HRV 176-450 E | C43: - | D43: HRC1b - recuperative (total thermal energy) | E43: 450 | F43: 315 | G43: 50 | H43: 0.96 | I43: 0.7 | J43: 0.35
G44: 316 | H44: 0.78 | I44: 0.55 | J44: 0.22
G45: 450 | H45: 0.71 | I45: 0.5 | J45: 0.35
A46: Brink Climate Systems (Airplast) | B46: Renovent Sky 150+ | C46: - | D46: HRC1a - recuperative (sensible thermal energy) | E46: 150 m3/h | F46: 105 m3/h | G46: 50 m³/h | H46: 0.86 | I46: -- | J46: 0,32 Wh/m³
G47: 105 m³/h | H47: 0.83 | I47: -- | J47: 0,27 Wh/m³
G48: 150 m³/h | H48: 0.83 | I48: -- | J48: 0,40 Wh/m³
B49: Flair 225 | C49: - | D49: HRC1a - recuperative (sensible thermal energy) | E49: 225 | F49: 156 | G49: 40 | H49: 0.969 | I49: -- | J49: 0.29
G50: 156 | H50: 0.923 | I50: -- | J50: 0.17
G51: 225 | H51: 0.892 | I51: -- | J51: 0.26
B52: Flair 325 | C52: - | D52: HRC1a - recuperative (sensible thermal energy) | E52: 325 | F52: 224 | G52: 51 | H52: 0.984 | I52: -- | J52: 0.23
G53: 224 | H53: 0.908 | I53: -- | J53: 0.15
G54: 325 | H54: 0.905 | I54: -- | J54: 0.24
B55: Flair 400 | C55: - | D55: HRC1a - recuperative (sensible thermal energy) | E55: 400 | F55: 279 | G55: 50 | H55: 0.973 | I55: -- | J55: 0.22
E56: 400 | F56: 400 | G56: 279 | H56: 0.921 | I56: -- | J56: 0.17
G57: 400 | H57: 0.885 | I57: -- | J57: 0.28
A58: Drexel & Weiß Energieeffiziente Haustechniksysteme GmbH | B58: aerosilent bianco | C58: - | D58: HRC1a - recuperative (sensible thermal energy) | E58: 150 | F58: 90 | G58: 104.5 | H58: 0.89 | I58: -- | J58: 0.28
B59: aerosilent stratos | C59: - | D59: HRC1a - recuperative (sensible thermal energy) | E59: 257 | F59: 180 | G59: 83 | H59: 0.92 | I59: -- | J59: 0.26
G60: 186 | H60: 0.89 | I60: -- | J60: 0.26
G61: 255 | H61: 0.88 | I61: -- | J61: 0.4
B62: aerosilent exos | C62: - | D62: HRC1a - recuperative (sensible thermal energy) | E62: 450 | F62: 315 | G62: 61 | H62: 0.947 | I62: -- | J62: 0.32
G63: 315 | H63: 0.869 | I63: -- | J63: 0.33
G64: 450 | H64: 0.859 | I64: -- | J64: 0.57
B65: aeroschool 600 | C65: - | D65: HRC1a - recuperative (sensible thermal energy) | E65: 749 | F65: 524 | G65: 162 | H65: 0.916 | I65: -- | J65: 0.21
G66: 532 | H66: 0.851 | I66: -- | J66: 0.23
G67: 753 | H67: 0.83 | I67: -- | J67: 0.45
A68: ECOAIR System | B68: H200 Q plus Bypass | C68: - | D68: HRC1a - recuperative (sensible thermal energy) | E68: 269 m3/h | F68: 188 m3/h | G68: 107 m³/h | H68: 0.86 | I68: -- | J68: 0.21
G69: 188 m³/h | H69: 0.85 | I69: -- | J69: 0.27
G70: 269 m³/h | H70: 0.85 | I70: -- | J70: 0.46
B71: HRV 1.35 Q Plus Eco | C71: - | D71: HRC1a - recuperative (sensible thermal energy) | E71: 239 | F71: 146 | G71: 56 | H71: 0.91 | I71: -- | J71: 0.29
G72: 146 | H72: 0.85 | I72: -- | J72: 0.41
G73: 208 | H73: 0.85 | I73: -- | J73: 0.7
B74: HRV 1.6 Q Plus Eco | C74: - | D74: HRC1a - recuperative (sensible thermal energy) | E74: 348 | F74: 240 | G74: 72 | H74: 0.926 | I74: -- | J74: 0.25
G75: 212 | H75: 0.828 | I75: -- | J75: 0.29
G76: 346 | H76: 0.795 | I76: -- | J76: 0.49
B77: HRV 2.85 Q Plus Eco | C77: - | D77: HRC1a - recuperative (sensible thermal energy) | E77: 332 | F77: 234 | G77: 75.8 | H77: 0.933 | I77: -- | J77: 0.24
G78: 234.4 | H78: 0.842 | I78: -- | J78: 0.27
G79: 332.3 | H79: 0.832 | I79: -- | J79: 0.45
B80: HRV20 HE Q Plus B | C80: - | D80: HRC1a - recuperative (sensible thermal energy) | E80: 633 | F80: 443 | G80: 219 | H80: 0.888 | I80: -- | J80: 0.17
G81: 445 | H81: 0.851 | I81: -- | J81: 0.25
G82: 600 | H82: 0.84 | I82: -- | J82: 0.4
A83: EHT Italia | B83: Ventil 150 plus | C83: - | D83: HRC1a - recuperative (sensible thermal energy) | E83: 172 | F83: 150 | G83: 50.3 | H83: 0.901 | I83: -- | J83: 0.33
G84: 105.5 | H84: 0.868 | I84: -- | J84: 0.37
G85: 153.6 | H85: 0.857 | I85: -- | J85: 0.53
B86: Ventil 300 plus | C86: - | D86: HRC1a - recuperative (sensible thermal energy) | E86: 269 | F86: 300 | G86: 100.5 | H86: 0.894 | I86: -- | J86: 0.24
G87: 210.9 | H87: 0.864 | I87: -- | J87: 0.38
G88: 303.8 | H88: 0.847 | I88: -- | J88: 0.55
B89: Top Ventil 300 plus | C89: - | D89: HRC1a - recuperative (sensible thermal energy) | E89: 150 | F89: 150 | G89: 53.2 | H89: 0.897 | I89: -- | J89: 0.32
G90: 105.1 | H90: 0.878 | I90: -- | J90: 0.36
G91: 156 | H91: 0.869 | I91: -- | J91: 0.52
A92: Ensy | B92: AHU 400 BH/BV | C92: - | D92: HRC1a - recuperative (sensible thermal energy) | E92: 470 m3/h | F92: 330 m3/h | G92: 178 m³/h | H92: 0.81 | I92: -- | J92: 0.32
B93: AHU 400 HH/HV | G93: 325 m³/h | H93: 0.81 | I93: -- | J93: 0.41
G94: 465 m³/h | H94: 0.79 | I94: -- | J94: 0.67
A95: Helios Ventilatoren (Farko) | B95: KWL EC 200 W | C95: - | D95: HRC1a - recuperative (sensible thermal energy) | E95: 175 | F95: 123 | G95: 69.2 | H95: 0.862 | I95: -- | J95: 0.35
G96: 121.3 | H96: 0.849 | I96: -- | J96: 0.32
G97: 173.7 | H97: 0.84 | I97: -- | J97: 0.48
B98: KWL EC 220 D | C98: - | D98: HRC1a - recuperative (sensible thermal energy) | E98: 172 | F98: 120 | G98: 66.7 | H98: 0.91 | I98: -- | J98: 0.35
G99: 118.9 | H99: 0.883 | I99: -- | J99: 0.29
G100: 170.7 | H100: 0.873 | I100: -- | J100: 0.41
B101: KWL EC 300 W | C101: - | D101: HRC1a - recuperative (sensible thermal energy) | E101: 280 | F101: 196 | G101: 69.5 | H101: 0.881 | I101: -- | J101: 0.36
G102: 189 | H102: 0.846 | I102: -- | J102: 0.38
G103: 269.6 | H103: 0.826 | I103: -- | J103: 0.6
B104: KWL EC 340 D | C104: - | D104: HRC1a - recuperative (sensible thermal energy) | E104: 300 | F104: 210 | G104: 99.3 | H104: 0.931 | I104: -- | J104: 0.25
G105: 209.3 | H105: 0.876 | I105: -- | J105: 0.26
G106: 297.8 | H106: 0.864 | I106: -- | J106: 0.4
B107: KWL EC 500 W | C107: - | D107: HRC1a - recuperative (sensible thermal energy) | E107: 360 | F107: 252 | G107: 98.4 | H107: 0.912 | I107: -- | J107: 0.34
G108: 244.9 | H108: 0.867 | I108: -- | J108: 0.33
G109: 350.9 | H109: 0.843 | I109: -- | J109: 0.5
A110: Hitec | B110: Reo 220 | C110: - | D110: HRC1a - recuperative (sensible thermal energy) | E110: 220 | F110: 169 | G110: 87 | H110: 0.87 | I110: -- | J110: 0.29
G111: 165 | H111: 0.83 | I111: -- | J111: 0,34 Wh/m³
G112: 239 | H112: 0.81 | I112: -- | J112: 0,41 Wh/m³
A113: Hoval | B113: HomeVent FR (201) | D113: HRC1b - recuperative (total thermal energy) | E113: 200 | F113: 140 | G113: 97 | H113: 0.79 | I113: 0.91 | J113: 0.3
G114: 144 | H114: 0.81 | I114: 0.88 | J114: 0.27
G115: 202 | H115: 0.81 | I115: npd | J115: 0.36
B116: HomeVent FR (251) | D116: HRC1b - recuperative (total thermal energy) | E116: 250 m3/h | F116: 175 | G116: 97 | H116: 0.79 | I116: 0.91 | J116: 0.3
G117: 175 | H117: 0.81 | I117: 0.87 | J117: 0.28
G118: 251 | H118: 0.82 | I118: npd | J118: 0.38
B119: HomeVent FR (301) | D119: HRC1b - recuperative (total thermal energy) | E119: 300 m3/h | F119: 210 | G119: 97 | H119: 0.79 | I119: 0.91 | J119: 0.3
G120: 209 | H120: 0.81 | I120: 0.85 | J120: 0.3
G121: 306 | H121: 0.81 | I121: npd | J121: 0.42
B122: HomeVent FRT (251) | D122: HRC1b - recuperative (total thermal energy) | E122: 250 | F122: 175 | G122: 51 | H122: 0.771 | I122: 0.788 | J122: 0.33
G123: 174 | H123: 0.845 | I123: 0.838 | J123: 0.22
G124: 247 | H124: 0.817 | I124: 0.846 | J124: 0.31
B125: HomeVent FRT (351) | D125: HRC1b - recuperative (total thermal energy) | E125: 350 | F125: 245 | G125: 51 | H125: 0.771 | I125: 0.788 | J125: 0.33
G126: 249 | H126: 0.825 | I126: 0.855 | J126: 0.25
G127: 350 | H127: 0.783 | I127: 0.797 | J127: 0.38
B128: HomeVent FRT (451) | D128: HRC1b - recuperative (total thermal energy) | E128: 450 | F128: 310 | G128: 51 | H128: 0.77 | I128: 0.79 | J128: 0.33
G129: 313 | H129: 0.81 | I129: 0.81 | J129: 0.3
G130: 459 | H130: 0.76 | I130: 0.75 | J130: 0.42
B131: HomeVent FR (180) | C131: - | D131: HRC1b - recuperative (total thermal energy) | E131: 180 m3/h | F131: - | G131: 56 m³/h | H131: 0.77 | I131: 0.89 | J131: 0,27 Wh/m³
G132: 125 m³/h | H132: 0.79 | I132: 0.76 | J132: 0,28 Wh/m³
G133: 140 m³/h | H133: 0.78 | I133: 0.74 | J133: 0,30 Wh/m³
B134: HomeVent FR (250) | C134: - | D134: HRC1b - recuperative (total thermal energy) | E134: 250 m3/h | F134: - | G134: 100 m³/h | H134: 0.8 | I134: 0.81 | J134: 0,47 Wh/m³
G135: 150 m³/h | H135: 0.81 | I135: 0.78 | J135: 0,42 Wh/m³
G136: 200 m³/h | H136: 0.78 | I136: 0.73 | J136: 0,45 Wh/m³
B137: HomeVent FR (300) | C137: - | D137: HRC1b - recuperative (total thermal energy) | E137: 300 m3/h | F137: - | G137: 210 m³/h | H137: 0.85 | I137: 0.89 | J137: 0,28 Wh/m³
G138: 303 m³/h | H138: 0.81 | I138: 0.83 | J138: 0,37 Wh/m³
B139: HomeVent FR (500) | C139: - | D139: HRC1a - recuperative (sensible thermal energy) | E139: 500 m3/h | F139: - | G139: 100 m³/h | H139: 0.74 | I139: -- | J139: 0,33 Wh/m³
G140: 500 m³/h | H140: 0.67 | I140: -- | J140: 0,36 Wh/m³
A141: Komfovent (Icaria) | B141: Domekt-R-250-L-F | C141: - | D141: HRC1b - recuperative (total thermal energy) | E141: 214 | F141: 150 | G141: 150 | H141: 0.834 | I141: 0.522 | J141: 0.43
B142: Domekt-R-300-V | C142: - | E142: 271 | F142: 191 | G142: 191 | H142: 0.814 | I142: 0.543 | J142: 0.32
B143: Domekt-R-400-V | C143: - | E143: 300 | F143: 210 | G143: 210 | H143: 0.829 | I143: 0.58 | J143: 0.29
A144: Lindab | B144: HERU 130SEC | C144: - | D144: HRC1b - recuperative (total thermal energy) | E144: 540 m3/h | F144: 468 m3/h | G144: 127 m³/h | H144: 0.83 | I144: 0.47 | J144: 0.45
G145: 154 m³/h | H145: 0.86 | I145: 0.49 | J145: 0.41
G146: 227 m³/h | H146: 0.85 | I146: 0.5 | J146: 0.36
G147: 274 m³/h | H147: 0.85 | I147: 0.5 | J147: 0.35
G148: 317 m³/h | H148: 0.84 | I148: 0.51 | J148: 0.36
G149: 376 m³/h | H149: 0.84 | I149: 0.51 | J149: 0.38
B150: Heru 360 T Small | C150: - | D150: HRC1a - recuperative (sensible thermal energy) | G150: 145 m³/h | H150: 0.85 | I150: -- | J150: 0,90 Wh/m³
G151: 215 m³/h | H151: 0.83 | I151: -- | J151: 0,85 Wh/m³
A152: MAICO Ventilatoren (Imperial) | B152: WS 120 TRIO LL, LLV, LR, LRV | D152: HRC1a - recuperative (sensible thermal energy) | E152: 120 | F152: 84 | G152: 39.9 | H152: 0.858 | I152: -- | J152: 0.34
G153: 84.3 | H153: 0.812 | I153: -- | J153: 0.29
G154: 119.8 | H154: 0.764 | I154: -- | J154: 0.42
B155: WS 120 TRIO QL, QLV, QR, QRV | D155: HRC1a - recuperative (sensible thermal energy) | E155: 120 | F155: 84 | G155: 40.2 | H155: 0.907 | I155: -- | J155: 0.32
G156: 84 | H156: 0.845 | I156: -- | J156: 0.27
G157: 119.9 | H157: 0.804 | I157: -- | J157: 0.38
B158: WS 160 FLAT ET, BET, KET, KBET, KBZET | D158: HRC1b - recuperative (total thermal energy) | E158: 160 | F158: 112 | G158: 43 | H158: 0.835 | I158: 0.52 | J158: 0.37
G159: 111 | H159: 0.751 | I159: 0.52 | J159: 0.32
G160: 157 | H160: 0.71 | I160: 0.48 | J160: 0.47
B161: WS 170 / WS 170 ET RET, LET, KRET, KLET KBRET, KBLET | D161: HRC1b - recuperative (total thermal energy) | E161: 160 | F161: 112 | G161: 43 | H161: 0.835 | I161: 0.6 | J161: 0.37
G162: 111 | H162: 0.75 | I162: 0.51 | J162: 0.32
G163: 157 | H163: 0.71 | I163: 0.603 | J163: 0.47
B164: WS 300 FLAT R, L, BR, BL, KBR, KBL | D164: HRC1b - recuperative (total thermal energy) | E164: 300 | F164: 210 | G164: 81.5 | H164: 0.933 | I164: 0.82 | J164: 0.2
G165: 209.6 | H165: 0.815 | I165: 0.6 | J165: 0.19
G166: 297.6 | H166: 0.783 | I166: 0.5 | J166: 0.31
B167: WS 320 ET RET, BET, BRET, KET, KBET, KRET, KBRET KBET | D167: HRC1b - recuperative (total thermal energy) | E167: 300 | F167: 210 | G167: 85 | H167: 0.928 | I167: 0.919 | J167: 0.21
G168: 209 | H168: 0.833 | I168: 0.684 | J168: 0.17
G169: 297 | H169: 0.785 | I169: 0.67 | J169: 0.27
B170: WS 470 ET RET, BET, BRET, KET, KBET, KRET, KBRET | D170: HRC1b - recuperative (total thermal energy) | E170: 485 | F170: 340 | G170: 85.2 | H170: 0.928 | I170: 0.919 | J170: 0.21
G171: 337.2 | H171: 0.781 | I171: 0.603 | J171: 0.25
G172: 485.1 | H172: 0.744 | I172: 0.563 | J172: 0.46
A173: Nilan | B173: Comfort CT150 | D173: HRC1a - recuperative (sensible thermal energy) | E173: 175 m³/h | F173: 120 m³/h | G173: 86 m³/h | H173: 0.92 | I173: -- | J173: 0,19 Wh/m³
A174: (EXRG) | G174: 120 m³/h | H174: 0.92 | I174: -- | J174: 0,20 Wh/m³
G175: 174 m³/h | H175: 0.89 | I175: -- | J175: 0,32 Wh/m³
B176: Comfort CT300 | D176: HRC1a - recuperative (sensible thermal energy) | E176: 400 m³/h | F176: 280 m³/h | G176: 100 m³/h | H176: 0.94 | I176: -- | J176: 0,29 Wh/m³
G177: 150 m³/h | H177: 0.92 | I177: -- | J177: 0,25 Wh/m³
G178: 200 m³/h | H178: 0.9 | I178: -- | J178: 0,25 Wh/m³
G179: 250 m³/h | H179: 0.87 | I179: -- | J179: 0,25 Wh/m³
G180: 300 m³/h | H180: 0.87 | I180: -- | J180: 0,28 Wh/m³
G181: 350 m³/h | H181: 0.86 | I181: -- | J181: 0,32 Wh/m³
G182: 400 m³/h | H182: 0.85 | I182: -- | J182: 0,36 Wh/m³
A183: Pluggit | B183: PluggPlan PP-GH, PP-GV | C183: - | D183: HRC1a - recuperative (sensible thermal energy) | E183: 100 m3/h | F183: 70 m3/h | G183: 33 m³/h | H183: 0.88 | I183: -- | J183: 0.36
G184: 68 m³/h | H184: 0.85 | I184: -- | J184: 0.26
G185: 99 m³/h | H185: 0.85 | I185: -- | J185: 0.33
B186: PluggEasy ASPV1.0 | C186: - | D186: HRC1a - recuperative (sensible thermal energy) | E186: 220 | F186: 154 | G186: 66 | H186: 0.913 | I186: -- | J186: 0.24
G187: 157 | H187: 0.867 | I187: -- | J187: 0.25
G188: 222 | H188: 0.856 | I188: -- | J188: 0.39
B189: PluggEasy ASPV2.0 | D189: HRC1a - recuperative (sensible thermal energy) | E189: 380 | F189: 266 | G189: 62 | H189: 0.891 | I189: -- | J189: 0.24
G190: 274 | H190: 0.854 | I190: -- | J190: 0.23
G191: 360 | H191: 0.851 | I191: -- | J191: 0.36
B192: PluggEasy ASPV3.0 | C192: - | D192: HRC1a - recuperative (sensible thermal energy) | E192: 540 | F192: 378 | G192: 65 | H192: 0.901 | I192: -- | J192: 0.26
G193: 390 | H193: 0.854 | I193: -- | J193: 0.28
G194: 546 | H194: 0.854 | I194: -- | J194: 0.47
B195: PluggEasy ASPH1.0 | C195: - | D195: HRC1a - recuperative (sensible thermal energy) | E195: 230 | F195: 161 | G195: 45 | H195: 0.936 | I195: -- | J195: 0.32
G196: 167 | H196: 0.834 | I196: -- | J196: 0.23
G197: 241 | H197: 0.824 | I197: -- | J197: 0.35
B198: PluggEasy ASPV1.0 E | C198: - | D198: HRC1b - recuperative (total thermal energy) | E198: 220 | F198: 154 | G198: 65 | H198: 0.798 | I198: 0.743 | J198: 0.24
G199: 156 | H199: 0.769 | I199: 0.684 | J199: 0.25
G200: 220 | H200: 0.746 | I200: 0.65 | J200: 0.39
... 203 more rows

Sheet Type 2_non DUCTED
E1: AIR VOLUME FLOW | G1: MEASURED VALUES
A2: Manufactorer | Reseller | B2: Productname | C2: Quality Product | D2: Heat exchanger | E2: declared max. | F2: reference | G2: Air volume flow | H2: Air volume flow | I2: Temperatur ratio | J2: Temperatur ratio | K2: Humidity ratio | L2: Spezific Power Input
E3: PORTATA D'ARIA | G3: VALORI MISURATI
A4: Produttore| Rivenditore | B4: Denominazione Prodotto | C4: Prodotto Qualità | D4: Scambiatore di calore | E4: max. dicchiarata | F4: di riferimento | G4: Portata d'aria nuova | H4: Portata d'aria corretta | I4: Efficienza recuperat. sensibile | J4: Efficienza recuperat. sensibile nuovo | K4: Efficienza recuperat. latente | L4: Potenza elettrica specifica
E5: LUFTVOLUMENSTROM | G5: GEMESSENE WERTE
A6: Hersteller | Reseller | B6: Produktbezeichnung | C6: Qualitäts Produkt | D6: Wärmetauscher | E6: max. angegeben | F6: Bezugswert | G6: Luftvolumenstrom neu | H6: Luftvolumenstrom korr. | I6: Temperaturverhältnis | J6: Temperaturverhältnis | K6: Feuchteverhältnis | L6: elektr. spez. Leistungsaufnahme
E7: qvmax,d | F7: qvref | G7: qvmin/ref/max | H7: qv5 | I7: ɳ5,su | J7: ɳ0,su | K7: ɳx,su | L7: SPI (SFP)
A8: Alpac | B8: Flow Comfort Compact | C8: - | D8: HRC1b - recuperative (total thermal energy) | E8: 30 | F8: 21 | H8: 10 | I8: 0.81 | K8: 0.713 | L8: 0.45
H9: 20 | I9: 0.7 | K9: 0.595 | L9: 0.47
B10: Flow Plus 100 /HR /Full | D10: HRC1b - recuperative (total thermal energy) | E10: 91 | F10: 70 | H10: 23 | I10: 0.805 | K10: 0.7 | L10: 0.25
H11: 45 | I11: 0.71 | K11: 0.604 | L11: 0.3
H12: 64 | I12: 0.67 | K12: 0.566 | L12: 0.37
H13: 81 | I13: 0.63 | K13: 0.557 | L13: 0.46
B14: Flow Compact/HR/Full Flow Aliante /Full Flow Arias Light | D14: HRC1b - recuperative (total thermal energy) | E14: 36 | F14: 25 | H14: 9.2 | I14: 0.843 | K14: 0.71 | L14: 0.36
H15: 15.9 | I15: 0.74 | K15: 0.615 | L15: 0.32
H16: 23.3 | I16: 0.697 | K16: 0.555 | L16: 0.36
H17: 33.2 | I17: 0.644 | K17: npd | L17: 0.49
B18: Flow Smart /HR /Full | D18: HRC1b - recuperative (total thermal energy) | E18: 45 | F18: 32 | H18: 15.4 | I18: 0.869 | K18: 0.778 | L18: 0.38
H19: 30.9 | I19: 0.822 | K19: npd | L19: 0.43
A20: Blu Martin (Radmüller OHG) | B20: Free Air 100 | D20: HRC1a - recuperative (sensible thermal energy) | E20: 100 m3/h | F20: 70 m3/h | H20: 52.87 | I20: 0.8 | K20: N/A | L20: 0.27
H21: 94 | I21: 0.8 | K21: N/A | L21: 0.43
A22: Brink Climate Systems (Airplast) | B22: Air 70 | C22: - | D22: HRC1a - recuperative (sensible thermal energy) | E22: 70 m3/h | F22: 49 | H22: 46 m³/h | I22: 0.73 | K22: N/A | L22: 0.2
A23: Finstral | B23: ActiveVent | D23: HRC1b - recuperative (total thermal energy) | E23: 41 | F23: 28 m³/h | H23: 14 m³/h | I23: 0.77 | K23: 0.66 | L23: 0.28
H24: 27 m³/h | I24: 0.7 | K24: 0.51 | L24: 0.35
H25: 38 m³/h | I25: 0.65 | K25: 0.45 | L25: 0.52
A26: Halmburger | B26: WRL-K-75 | C26: - | D26: HRC1a - recuperative (sensible thermal energy) | E26: 60 m3/h | F26: 45 m3/h | H26: 27 m³/h | I26: 0.69 | K26: N/A | L26: 0.24
H27: 42 m³/h | I27: 0.66 | L27: 0.27
A28: Helty | B28: Flow 100 Flow 100 Pure | D28: HRC1b - recuperative (total thermal energy) | E28: 91 | F28: 70 | H28: 23 | I28: 0.805 | K28: 0.7 | L28: 0.25
H29: 45 | I29: 0.71 | K29: 0.604 | L29: 0.3
H30: 64 | I30: 0.67 | K30: 0.566 | L30: 0.37
H31: 81 | I31: 0.63 | K31: 0.557 | L31: 0.46
B32: Flow 40 /Pure Flow Plus Flow Elite Flow Easy /tinteggiabile /UV | D32: HRC1b - recuperative (total thermal energy) | E32: 36 | F32: 25 | H32: 9.2 | I32: 0.843 | K32: 0.71 | L32: 0.36
H33: 15.9 | I33: 0.74 | K33: 0.615 | L33: 0.32
H34: 23.3 | I34: 0.697 | K34: 0.555 | L34: 0.36
H35: 33.2 | I35: 0.644 | K35: npd | L35: 0.49
B36: Flow 120 Flow C120 Flow Ultra | D36: HRC1b - recuperative (total thermal energy) | E36: 80 | F36: 56 | H36: 14 | I36: 0.882 | K36: 0.687 | L36: 0.39
H37: 31 | I37: 0.815 | K37: 0.605 | L37: 0.32
H38: 63 | I38: 0.721 | K38: 0.512 | L38: 0.43
H39: 84 | I39: 0.684 | K39: 0.475 | L39: 0.52
A40: InVENter GmbH | B40: iV-Twin+ | C40: - | D40: HRC1a - recuperative (sensible thermal energy) | E40: 22 | F40: 15.8 | H40: 9.6 | I40: 0.539 | K40: N/A | L40: 0.17
A41: liVENTO GmbH/srl | B41: AEROline Alm -S2/E3 | C41: - | D41: HRC1a - recuperative (sensible thermal energy) | E41: 55 m3/h | F41: 39 m3/h | H41: 15 | I41: 0.777 | K41: N/A | L41: 0.28
H42: 24 | I42: 0.759 | K42: N/A | L42: 0.28
H43: 36 | I43: 0.755 | K43: N/A | L43: 0.29
H44: 40 | I44: 0.746 | K44: N/A | L44: 0.33
H45: 49 | I45: 0.728 | K45: N/A | L45: 0.41
A46: MAICO (Imperial) | B46: WS 75 Powerbox | D46: HRC1a - recuperative (sensible thermal energy) | E46: 70 | F46: 49 | H46: 19.9 | I46: 0.93 | K46: N/A | L46: 0.3
H47: 49 | I47: 0.815 | K47: N/A | L47: 0.27
H48: 70 | I48: 0.77 | K48: N/A | L48: 0.37
A49: Meltem (Isodomus) | B49: M-WRG-S M-WRG-K | D49: HRC1a - recuperative (sensible thermal energy) | E49: 97 m3/h | F49: 69 m3/h | H49: 14.3 | I49: 0.675 | K49: N/A | L49: 0.16
H50: 40.1 | I50: 0.638 | K50: N/A | L50: 0.14
H51: 57.3 | I51: 0.613 | K51: N/A | L51: 0.21
H52: 64.8 | I52: 0.597 | K52: N/A | L52: 0.24
H53: 92.7 | I53: 0.573 | K53: N/A | L53: 0.38
B54: M-WRG-II P | D54: HRC1a - recuperative (sensible thermal energy) | E54: 99 | F54: 70 | H54: 10 | I54: 0.94 | K54: N/A | L54: 0.44
H55: 69 | I55: 0.84 | K55: N/A | L55: 0.31
H56: 100 | I56: 0.83 | K56: N/A | L56: 0.48
B57: M-WRG-II E | D57: HRC1b - recuperative (total thermal energy) | E57: 99 | F57: 70 | H57: 10 | I57: 0.909 | K57: 0.813 | L57: 0.42
H58: 70 | I58: 0.723 | K58: 0.444 | L58: 0.29
H59: 100 | I59: 0.692 | K59: 0.366 | L59: 0.48
A60: J. Pichler Gesellschaft m.b.H | B60: LG 100 UP/AP (singolo ambiente - Einzelraum) | D60: HRC1b - recuperative (total thermal energy) | E60: 60 | F60: 42 | H60: 24.9 | I60: 0.82 | K60: 0.77 | L60: 0.33
H61: 40.7 | I61: 0.772 | K61: 0.691 | L61: 0.28
H62: 58.2 | I62: 0.739 | K62: 0.637 | L62: 0.28
B63: LG 100 UP (pluri ambienti - Mehrraum) | D63: HRC1b - recuperative (total thermal energy) | E63: 80 | F63: 56 | H63: 24.3 | I63: 0.819 | K63: 0.772 | L63: 0.44
H64: 55 | I64: 0.75 | K64: 0.643 | L64: 0.35
H65: 77.4 | I65: 0.711 | K65: 0.576 | L65: 0.49
A66: Straudi | B66: Posaclima PureAir | D66: HRC1b - recuperative (total thermal energy) | E66: 41 | F66: 28 m³/h | H66: 14 m³/h | I66: 0.77 | K66: 0.66 | L66: 0.28
H67: 27 m³/h | I67: 0.7 | K67: 0.51 | L67: 0.35
H68: 38 m³/h | I68: 0.65 | K68: 0.45 | L68: 0.52
A69: Südtirol Fenster | B69: ISO-bloc-air ® | C69: - | D69: HRC1a - recuperative (sensible thermal energy) | E69: 37 | F69: 25.5 | H69: 10.4 | I69: 0.77 | K69: N/A | L69: 0.51
H70: 22.7 | I70: 0.691 | K70: N/A | L70: 0.4
H71: 32.4 | I71: 0.643 | K71: N/A | L71: 0.57
A72: Thesan - Savio Group | B72: Thesan - Aircare ES | D72: HRC1b - recuperative (total thermal energy) | E72: 41 | F72: 28 m³/h | H72: 14 | I72: 0.77 | K72: 0.66 | L72: 0.28
H73: 27 | I73: 0.7 | K73: 0.51 | L73: 0.35
H74: 38 | I74: 0.65 | K74: 0.45 | L74: 0.52
A75: Top Air (Roos) | B75: R-Tube 40 | C75: - | D75: HRC1a - recuperative (sensible thermal energy) | E75: 40 | F75: 28 | H75: 8.4 | I75: 0.787 | K75: N/A | L75: 0.27
H76: 17.6 | I76: 0.691 | K76: N/A | L76: 0.16
H77: 25.5 | I77: 0.633 | K77: N/A | L77: 0.15
H78: 35 | I78: 0.583 | K78: N/A | L78: 0.18
B79: R-Tube 60 | C79: - | D79: HRC1a - recuperative (sensible thermal energy) | E79: 60 | F79: 42 | H79: 9 | I79: 0.86 | K79: N/A | L79: 0.27
H80: 19 | I80: 0.76 | K80: N/A | L80: 0.16
H81: 28 | I81: 0.69 | K81: N/A | L81: 0.15
H82: 38 | I82: 0.64 | K82: N/A | L82: 0.18
H83: 55 | I83: 0.61 | K83: N/A | L83: 0.26
A84: Wolf Italia (Brink Climate System) | B84: CWL-D 70 | C84: - | D84: HRC1a - recuperative (sensible thermal energy) | E84: 70 m3/h | F84: 49 | H84: 46 m³/h | I84: 0.73 | K84: N/A | L84: 0.2
A85: Zehnder | B85: ComfoSpot 50 | D85: HRC1b - recuperative (total thermal energy) | E85: 50 m3/h | F85: 35 | H85: 13 | I85: 0.76 | K85: 0.744 | L85: 0.27
H86: 22 | I86: 0.66 | K86: 0.581 | L86: 0.22
H87: 30 | I87: 0.61 | K87: 0.495 | L87: 0.23
H88: 35 | I88: 0.58 | K88: 0.46 | L88: 0.27
H89: 43 | I89: 0.55 | K89: 0.439 | L89: 0.29
B90: ComfoAir 70 | D90: HRC1b - recuperative (total thermal energy) | E90: 59 | F90: 41 | H90: 13.9 | I90: 0.822 | K90: 0.85 | L90: 0.26
H91: 25.9 | I91: 0.765 | K91: 0.75 | L91: 0.19
H92: 38.8 | I92: 0.704 | K92: 0.62 | L92: 0.21
H93: 54.5 | I93: 0.656 | K93: 0.55 | L93: 0.3

Sheet Type 3_non DUCTED ALT
E1: AIR VOLUME FLOW | G1: MEASURED VALUES
A2: Manufactorer | Reseller | B2: Productname | C2: Quality Product | D2: heat exchanger | E2: declared max. | F2: reference | G2: Air volume flow | H2: Air volume flow | I2: Temperatur ratio | J2: Temperatur ratio | K2: Humidity ratio | L2: Spezific Power Input
E3: PORTATA D'ARIA | G3: VALORI MISURATI
A4: Produttore | Rivenditore | B4: Denominazione Prodotto | C4: Prodotto Qualità | D4: scambiatore di calore | E4: max dichiarata | F4: di riferimento | G4: Portate | H4: Portate testate | I4: Efficienza recuperat. sensibile | J4: Efficienza recuperat. sensibile nuovo | K4: Efficienza recuperat. latente | L4: Potenza elettrica specifica
E5: LUFTVOLUMENSTROM | G5: GEMESSENE WERTE
A6: Hersteller | Reseller | B6: Produktbezeichnung | C6: Qualitäts Produkt | D6: Wärmetauscher | E6: max. angegeben | F6: Bezugswert | G6: Luftvolumenstrom neu | H6: Luftvolumenstrom korrigiert | I6: Temperaturverhältnis | J6: Temperaturverhältnis | K6: Feuchteverhältnis | L6: elektr. spez. Leistungsaufnahme
B7: min. 2 unità/Lüftungseinheiten | E7: qvmax,d | F7: qvref | G7: qvmin/ref/max | H7: qv5 | I7: ɳ5,su | J7: ɳ0,su | K7: ɳx,su | L7: SPI (SFP)
A8: Airplast | B8: A60-FLAT Basic-Duo-Wireless A60-FLAT-APP | D8: HRC3b - regenerative (alternating flow dir) | E8: 60 m3/h | F8: 40 | H8: 13.18 | I8: 0.429 | K8: N/A | L8: 0.38
H9: 24.25 | I9: 0.41 | K9: N/A | L9: 0.24
A10: InVENter GmbH | B10: iV-Smart+ iV14-Zero | D10: HRC3b - regenerative (alternating flow dir) | E10: 56 | F10: 42 | H10: 31 | I10: 0.64 | K10: N/A | L10: 0.15
A11: Lunos (Recuterm) | B11: Lunos – e2 | D11: HRC3b - regenerative (alternating flow dir) | E11: 33 | F11: 23 | H11: 13.28 | I11: 0.482 | K11: N/A | L11: 0.18
B12: Lunos – e260 | D12: HRC3b - regenerative (alternating flow dir) | E12: 57 | F12: 40 | H12: 13.1 | I12: 0.829 | K12: N/A | L12: 0.08
H13: 35.2 | I13: 0.759 | K13: N/A | L13: 0.08
H14: 48.9 | I14: 0.71 | K14: N/A | L14: 0.1
A15: MAICO (Imperial) | B15: PP45 (O, RC) | D15: HRC3b - regenerative (alternating flow dir) | E15: 42 | F15: 31 | H15: 10 | I15: 0.57 | K15: N/A | L15: 0.13
H16: 20 | I16: 0.55 | K16: N/A | L16: 0.1
H17: 27 | I17: 0.52 | K17: N/A | L17: 0.12
A18: Suedwind | B18: Ambientika | D18: HRC3b - regenerative (alternating flow dir) | E18: 60 m3/h | F18: 40 | H18: 13.18 | I18: 0.429 | K18: N/A | L18: 0.38
H19: 24.25 | I19: 0.41 | K19: N/A | L19: 0.24
A20: Top Air (Roos) | B20: Air fox | D20: HRC3b - regenerative (alternating flow dir) | E20: 47 | F20: 35 | H20: 22.1 | I20: 0.548 | K20: N/A | L20: 0.16
B21: Air mini | D21: HRC3b - regenerative (alternating flow dir) | E21: 60 | F21: 42 | H21: 52 | I21: 0.55 | K21: N/A | L21: 0.45
A22: Limot | B22: Airodor 30 | D22: HRC3b - regenerative (alternating flow dir) | E22: 37 m3/h | F22: 26 m3/h | H22: 7 m³/h | I22: 0.22 | K22: N/A | L22: 0.12

Sheet Type 4_DUCTED-HP
E1: AIR VOLUME FLOW | H1: HEATING | I1: MEASURED VALUES | S1: COOLING | X1: HOT WATER
A2: Manufactorer | Reseller | B2: Productname | C2: Quality Product | D2: Multifunctional unit | E2: declared max | F2: reference | G2: recirculated | I2: Air volume flow measured | J2: Temperatur ratio | K2: Coefficient of Performance | N2: Spezific Power Input (without fans) | Q2: Spezific Power Input | U2: Energy Efficiency Ratio | V2: Spezific Power Input | Y2: DHW-stroage | AA2: Testing laboraty | AB2: Test report
A3: Produttore | Rivenditore | B3: Denominazione Prodotto | C3: Prodotto Qualità | D3: Unità multifunzionale | E3: Portata d'aria max. dicchiarata | F3: Portata d'aria di riferimento | G3: Portata d'aria ricircolata | I3: Portata d'aria testata | J3: Efficienza del recuperatore | K3: Coefficiente di prestazione | N3: Potenza elettrica assorbita (esclusi i ventilatori) | Q3: Potenza elettrica specifica | R3: COP | T3: Portata d'aria testata | U3: Indice di efficienza energetica | V3: Potenza elettrica assorbita | W3: EER | Y3: Accumulo ACS | AA3: Istitituto di prova | AB3: Rapporto di prova
A4: Hersteller | Reseller | B4: Produktbezeichnung | C4: Qualitäts Produkt | D4: multifunktionale Lüftungseinheit | E4: größter angegeb. Luftvolumenstrom | F4: Bezugs-Luftvolumenstrom | G4: Umluft-Luftvolumenstrom | I4: Luftvolumenstrom gemessen | J4: Temperaturverhältnis | K4: Heizleistungszahl | N4: Leistungsaufnahme (ohne Ventilatoren) | Q4: elektr. spez. Leistungsaufnahme | T4: Luftvolumenstrom gemessen | U4: Kälteleistungszahl | V4: elektr. spez. Leistungsaufnahme | Y4: WW-Speicher | AA4: Prüfinstitut | AB4: Prüfbericht
E5: qvmax,d | F5: qv,ref | G5: qv,r | I5: qv,test | J5: ɳθ,su | K5: A-7°/A20° | L5: A2°/A20° | M5: A7°/A20° | N5: A-7°/A20° | O5: A2°/A20° | P5: A7°/A20° | Q5: SPI (SFP) | R5: A7°/A20° | T5: qv,test | U5: A35°/A27° | V5: A35°/A27° | W5: A35°/A27°
A6: Clivet | B6: Elfo Fresh2 70 | C6: - | D6: air to air heat pump | F6: 70 m³/h | G6: 0 m³/h | H6: 70 m³/h | J6: N/A | K6: 0.466 | L6: 0.498 | M6: 0.52 | N6: 0.107 | O6: 0.123 | P6: 0.14 | Q6: 0.23 | S6: 70 m³/h | U6: 0.45 | V6: 0.2 | W6: =U6/V6 -> 2.25 | X6: N/A | AA6: IMQ Clima | AB6: 15024MAL-
B7: Elfo Fresh2 120 | C7: - | D7: air to air heat pump | F7: 120 m³/h | G7: 0 m³/h | H7: 120 m³/h | J7: N/A | K7: 0.887 | L7: 0.926 | M7: 0.98 | N7: 0.183 | O7: 0.211 | P7: 0.23 | Q7: 0.18 | S7: 120 m³/h | U7: 0.85 | V7: 0.33 | W7: 2.575757576 | AB7: 08EX089
B8: Elfo Fresh2 200 | C8: - | D8: air to air heat pump | F8: 200 m³/h | G8: 0 m³/h | H8: 200 m³/h | J8: N/A | K8: 1.811 | L8: 1.799 | M8: 1.81 | N8: 0.301 | O8: 0.355 | P8: 0.4 | Q8: 0.29 | S8: 200 m³/h | U8: 1.63 | V8: 0.57 | W8: 2.859649123
B9: Elfo Fresh2 300 | C9: - | D9: air to air heat pump | F9: 300 m³/h | G9: 0 m³/h | H9: 300 m³/h | J9: N/A | K9: 2.22 | L9: 2.256 | M9: 2.33 | N9: 0.354 | O9: 0.458 | P9: 0.54 | Q9: 0.24 | S9: 300 m³/h | U9: 2.17 | V9: 0.73 | W9: 2.97260274
B10: Elfo Fresh2 500 | C10: - | D10: air to air heat pump | F10: 500 m³/h | G10: 0 m³/h | H10: 500 m³/h | J10: N/A | K10: 3.48 | L10: 3.55 | M10: 3.58 | N10: 0.575 | O10: 0.664 | P10: 0.75 | Q10: 0.24 | S10: 500 m³/h | U10: 3.13 | V10: 1.1 | W10: 2.845454545
B11: Elfo Fresh2 650 | C11: - | D11: air to air heat pump | F11: 650 m³/h | G11: 0 m³/h | H11: 650 m³/h | J11: N/A | K11: 4.746 | L11: 4.881 | M11: 5 | N11: 0.867 | O11: 0.991 | P11: 1.12 | Q11: 0.26 | S11: 650 m³/h | U11: 4.23 | V11: 1.6 | W11: 2.64375
B12: Elfo Pack | C12: - | D12: air to air heat pump | E12: 400 m³/h | F12: 400 m³/h | G12: 300 m³/h | H12: 400 m³/h | J12: N/A | K12: 2.692 | L12: 2.888 | M12: 3.18 | N12: 0.711 | O12: 0.759 | P12: 0.842 | Q12: 0.31 | S12: 400 m³/h | U12: 2.145 | V12: 0.848 | W12: 2.529481132 | X12: 180 | AA12: IMQ Clima | AB12: 15013MAL-08EX018
A13: Nilan | B13: Combi 302 Polar | C13: - | D13: heat exchanger + air to air heat pump | E13: 442 m³/h | F13: 300 m³/h | G13: 0 m³/h | H13: 126 m³/h | J13: 0.92 | K13: 1.643 | L13: 1.449 | M13: 1.349 | N13: 0.559 | O13: 0.408 | P13: 0.425 | Q13: 0,18 Wh/m³ | S13: 387 m³/h | U13: 2.066 | V13: 0.753 | W13: 2.743691899 | X13: N/A | AA13: Hochschule | AB13: HP-151557/B
A14: (EXRG) | H14: 310 m³/h | J14: 0.88 | K14: 3.404 | L14: 2.759 | M14: 2.499 | N14: 0.847 | O14: 0.4 | P14: 0.404 | Q14: 0,28 Wh/m³
H15: 413 m³/h | J15: 0.87 | K15: 4.248 | L15: 3.309 | M15: 2.972 | N15: 0.908 | O15: 0.366 | P15: 0.37 | Q15: 0,57 Wh/m³
B16: Combi 302 Top | D16: heat exchanger + air to air heat pump | E16: 410 m³/h | F16: 287 m³/h | G16: 0 m³/h | H16: 165 m³/h | J16: 0.85 | K16: 1.644 | L16: 1.522 | M16: 1.358 | N16: 0.262 | O16: 0.28 | P16: 0.288 | Q16: 0.24 | S16: 165 m³/h | U16: 1.061 | V16: 0.441 | W16: =U16/V16 -> 2.405895692 | X16: N/A | AA16: IMQ Clima | AB16: 17108MAL-08CM412
H17: 287 m³/h | J17: 0.83 | K17: 2.684 | L17: 2.269 | M17: 1.909 | N17: 0.268 | O17: 0.268 | P17: 0.271 | Q17: 0.36 | S17: 287 m³/h | U17: 1.469 | V17: 0.475 | W17: 3.092631579
B18: Compact P-VP18 | D18: heat exchanger + air to air heat pump | E18: 290 m³/h | F18: 203 m³/h | G18: 0 m³/h | H18: 100 m³/h | J18: 0.88 | K18: 1.225 | L18: 1.114 | M18: 1.017 | N18: 0.26 | O18: 0.292 | P18: 0.311 | Q18: 0,34 Wh/m³ | S18: 100 m³/h | U18: 1.48 | V18: 0.43 | W18: 3.441860465 | X18: 180 | AA18: Hochschule | AB18: HP-10890/1
H19: 180 m³/h | J19: 0.85 | K19: 1.95 | L19: 1.682 | M19: 1.561 | N19: 0.25 | O19: 0.288 | P19: 0.306 | Q19: 0,35 Wh/m³ | S19: 203 m³/h | U19: 1.957 | V19: 0.484 | W19: 4.04338843 | AA19: IMQ Clima | AB19: 16072MAL-08CM305
H20: 220 m³/h | J20: 0.84 | K20: 2.28 | L20: 2.1 | M20: 1.88 | N20: 0.259 | O20: 0.289 | P20: 0.299 | Q20: 0,46 Wh/m³ | S20: 290 m³/h | U20: 2.186 | V20: 0.547 | W20: 3.996343693
B21: Compact P-XL | C21: - | D21: heat exchanger + air to air heat pump | E21: 400 m³/h | F21: 280 m³/h | G21: 0 m³/h | H21: 150 m³/h | J21: 0.86 | K21: 1.667 | L21: 1.489 | M21: 1.377 | N21: 0.256 | O21: 0.292 | P21: 0.305 | Q21: 0,35 Wh/m³ | S21: 100 m³/h | U21: 1.48 | V21: 0.43 | W21: 3.441860465 | X21: 180 | AA21: Hochschule | AB21: HP-10890/1
H22: 200 m³/h | J22: 0.84 | K22: 2.107 | L22: 1.889 | M22: 1.737 | N22: 0.254 | O22: 0.291 | P22: 0.301 | Q22: 0,36 Wh/m³ | S22: 203 m³/h | U22: 1.957 | V22: 0.484 | W22: 4.04338843 | AA22: DTI | AB22: 120820-03237
H23: 300 m³/h | J23: 0.82 | K23: 2.987 | L23: 2.689 | M23: 2.457 | N23: 0.252 | O23: 0.29 | P23: 0.295 | Q23: 0,49 Wh/m³ | S23: 290 m³/h | U23: 2.186 | V23: 0.547 | W23: 3.996343693
H24: 400 m³/h | J24: 0.8 | K24: 3.867 | L24: 3.489 | M24: 3.177 | N24: 0.251 | O24: 0.288 | P24: 0.291 | Q24: 0,64 Wh/m³
A25: J. Pichler Gesellschaft m.b.H | B25: PKOM4 | C25: - | D25: heat exchanger + air to air heat pump | E25: 250 m³/h | F25: 175 m³/h | G25: 0 m³/h | H25: 160 m³/h | J25: 0.85 | K25: 2.119 | L25: 1.542 | M25: 1.355 | N25: 0.357 | O25: 0.245 | P25: 0.201 | Q25: 0,35 Wh/m³ | S25: 171 m³/h | U25: 0.997 | V25: 0.303 | W25: =U25/V25 -> 3.290429043 | X25: 212 | AA25: Hochschule | AB25: HP-151547Aa
A26: SchwörerHaus (Bau Info Center Lüftungstechnik) | B26: WRG 134 BP HK WRG 334 HK | C26: - | D26: heat exchanger + air to air heat pump | E26: 330 m³/h | F26: 231 m³/h | G26: 0 m³/h | H26: 245 m³/h | J26: 0.83 | K26: 2.566 | L26: 2.248 | M26: 1.91 | N26: 0.46 | O26: 0.456 | P26: 0.424 | Q26: 0.29 | X26: N/A | AA26: IGE
A27: MyDatec - Telema | B27: MyDatec RT200 | D27: air to air heat pump | E27: 250 m³/h | F27: 200 m³/h | G27: 0 m³/h | H27: 212 m³/h | J27: N/A | K27: 1.85 | L27: 1.97 | M27: 1.92 | N27: 0.383 | O27: 0.48 | P27: 0.52 | Q27: 0.19 | S27: 212 m³/h | U27: 1.78 | V27: 0.74 | W27: =U27/V27 -> 2.405405405 | X27: N/A | AA27: Cetiat | AB27: 1114062/2

Sheet OLD Type 2+3 (hidden)
A1: Produttore / Rivenditore | B1: Prodotto | C1: Wärmetauscher | D1: Tipo | E1: Portate dichiarate min/max | G1: Portata di riferimento | H1: Portate testate | I1: Portate testate | J1: Efficienza recuperatore sens. | K1: Efficienza recuperatore sens. | L1: Efficienza recuperatore lat. | M1: Potenza elettrica specifica | N1: Istituto di Prova | O1: Rapporto di prova | P1: Status | Q1: Data di aggiornamento | R1: Nota
A2: Hersteller / Reseller | B2: Produkt | C2: scambiatore di calore | D2: Typ | E2: deklarierte Volumenströme min/max | G2: Referenz- volumenstrom | H2: gemessene Volumenströme | I2: gemessene Volumenströme | J2: Temperatur- verhältnis | K2: Temperatur- verhältnis | L2: Feuchtigkeits- verhältnis | M2: elektr. spez. Leistungsaufnahme | N2: Prüfinstitut | O2: Prüfbericht | R2: Bemerkung
A3: Manufactorer / Reseller | B3: Product | C3: heat exchanger | D3: Type | E3: declared air volume flow min/max | G3: reference air volume flow | H3: measured air volume flow | I3: measured air volume flow | J3: temperatur ratio | K3: temperatur ratio | L3: humidity ratio | M3: Spezific Power Input | N3: Institut | O3: Test Report
E4: qvmin,d | F4: qvmax,d | G4: qvref | H4: qvmin/ qvref/ qvmax | I4: qv5 | J4: ɳ5,su | K4: ɳ0,su | L4: ɳx,su | M4: SPI (SFP) | O4: Nr. | P4: Spalte1
A5: Alpac | B5: Flow Comfort Compact | C5: HRC1b - recuperative (total thermal energy) | D5: bidirezionale, flusso continuo - bidirektional, kontinuierlich | F5: 30 | G5: 21 | I5: 10 | J5: 0.81 | L5: 0.713 | M5: 0.45 | N5: TÜV SÜD | O5: WRG 459 | P5: aktuell | Q5: 2020-05-06 | R5: Name geändert
I6: 20 | J6: 0.7 | L6: 0.595 | M6: 0.47 | P6: aktuell
B7: Flow Plus 100 /HR /Full | C7: HRC1b - recuperative (total thermal energy) | D7: bidirezionale, flusso continuo - bidirektional, kontinuierlich | F7: 91 | G7: 70 | I7: 23 | J7: 0.805 | L7: 0.7 | M7: 0.25 | N7: TÜV SÜD | O7: WRG 482 | P7: aktuell | Q7: 2020-05-06 | R7: Name geändert
I8: 45 | J8: 0.71 | L8: 0.604 | M8: 0.3 | P8: aktuell
I9: 64 | J9: 0.67 | L9: 0.566 | M9: 0.37 | P9: aktuell
I10: 81 | J10: 0.63 | L10: 0.557 | M10: 0.46 | P10: aktuell
B11: Flow Compact/HR/Full | C11: HRC1b - recuperative (total thermal energy) | D11: bidirezionale, flusso continuo - bidirektional, kontinuierlich | F11: 36 | G11: 25 | I11: 9.2 | J11: 0.843 | L11: 0.71 | M11: 0.36 | N11: TÜV SÜD | O11: WRG 546 | P11: aktuell | Q11: 2020-05-06 | R11: Name geändert
B12: Flow Aliante /Full | I12: 15.9 | J12: 0.74 | L12: 0.615 | M12: 0.32 | P12: aktuell
B13: Flow Arias Light | I13: 23.3 | J13: 0.697 | L13: 0.555 | M13: 0.36 | P13: aktuell
I14: 33.2 | J14: 0.644 | L14: npd | M14: 0.49 | P14: aktuell
B15: Flow Smart /HR /Full | C15: HRC1b - recuperative (total thermal energy) | D15: bidirezionale, flusso continuo - bidirektional, kontinuierlich | F15: 45 | G15: 32 | I15: 15.4 | J15: 0.869 | L15: 0.778 | M15: 0.38 | N15: TÜV SÜD | O15: WRG 470 | P15: aktuell | Q15: 2021-06-29
I16: 30.9 | J16: 0.822 | L16: npd | M16: 0.43 | P16: aktuell | R16: neu
B17: Compact Twin | D17: bidirezionale, flusso continuo - bidirektional, kontinuierlich | F17: 72 | G17: 50 | I17: 13.8 | J17: 0.843 | L17: 0.71 | M17: 0.36 | N17: TÜV SÜD | O17: WRG 546 | P17: delete | Q17: 2021-06-29 | R17: aus Programm
I18: 31.8 | J18: 0.74 | L18: 0.615 | M18: 0.32 | P18: delete
I19: 46.6 | J19: 0.697 | L19: 0.555 | M19: 0.36 | P19: delete
I20: 68.6 | J20: 0.644 | L20: npd | M20: 0.49 | P20: delete
A21: Airplast | B21: A60-FLAT Basic-Duo-Wireless A60-FLAT-APP (min. 2 apparecchi/geräte) | C21: HRC3b - regenerative (alternating flow dir) | D21: funzionamento alternato Umschaltbetrieb | F21: 60 m3/h | G21: 40 | I21: 13.18 | J21: 0.429 | L21: N/A | M21: 0.38 | N21: IMQ | O21: 22031SEG-08MC112_2 | P21: aktuell | Q21: 2023-09-25 | R21: neuer Prüfbericht
I22: 24.25 | J22: 0.41 | L22: N/A | M22: 0.24 | P22: aktuell | Q22: 2023-10-13 | R22: Namen geändert
P23: aktuell
A24: Blu Martin | B24: Free Air 100 | C24: HRC1a - recuperative (sensible thermal energy) | D24: bidirezionale, flusso continuo - bidirektional, kontinuierlich | F24: 100 m3/h | G24: 70 m3/h | I24: 52.87 | J24: 0.8 | L24: N/A | M24: 0.27 | N24: TÜV SÜD | O24: WRG 330 | P24: aktuell | Q24: 2021-08-09 | R24: stufe ergänzt
A25: (Radmüller OHG) | I25: 94 | J25: 0.8 | L25: N/A | M25: 0.43 | P25: aktuell | R25: bestehend
A26: Brink Climate Systems (Airplast) | B26: Air 70 | C26: HRC1a - recuperative (sensible thermal energy) | D26: bidirezionale, flusso continuo - bidirektional, kontinuierlich | F26: 70 m3/h | G26: 49 | I26: 46 m³/h | J26: 0.73 | L26: N/A | M26: 0.2 | N26: TZWL | O26: M.85.09.204.AK | P26: aktuell
A27: Climapac | B27: Plus 100 | D27: bidirezionale, flusso continuo - bidirektional, kontinuierlich | F27: 91 | G27: 70 | I27: 23 | J27: 0.805 | L27: 0.7 | M27: 0.25 | N27: TÜV SÜD | O27: WRG 482 | P27: delete | Q27: 2020-05-06 | R27: Firma aufgelöst
I28: 45 | J28: 0.71 | L28: 0.604 | M28: 0.3 | P28: delete
A29: (Alpac) | I29: 64 | J29: 0.67 | L29: 0.566 | M29: 0.37 | P29: delete
I30: 81 | J30: 0.63 | L30: 0.557 | M30: 0.46 | P30: delete
B31: Flow Compact Aliante (light, full optional) Arias (light, full optional, living) | D31: bidirezionale, flusso continuo - bidirektional, kontinuierlich | I31: 9.2 | J31: 0.843 | L31: 0.71 | M31: 0.36 | N31: TÜV SÜD | O31: WRG 546 | P31: delete | Q31: 2020-05-06 | R31: Firma aufgelöst
F32: 36 | G32: 25 | I32: 15.9 | J32: 0.74 | L32: 0.615 | M32: 0.32 | P32: delete
I33: 23.3 | J33: 0.697 | L33: 0.555 | M33: 0.36 | P33: delete
I34: 33.2 | J34: 0.644 | L34: npd | M34: 0.49 | P34: delete
A35: Finstral | B35: ActiveVent | C35: HRC1b - recuperative (total thermal energy) | D35: bidirezionale, flusso continuo - bidirektional, kontinuierlich | F35: 41 | G35: 28 m³/h | I35: 14 m³/h | J35: 0.77 | L35: 0.66 | M35: 0.28 | N35: TÜV SÜD | O35: WRG438 | P35: aktuell
I36: 27 m³/h | J36: 0.7 | L36: 0.51 | M36: 0.35 | P36: aktuell
I37: 38 m³/h | J37: 0.65 | L37: 0.45 | M37: 0.52 | P37: aktuell
A38: Halmburger | B38: WRL-K-75 | C38: HRC1a - recuperative (sensible thermal energy) | D38: bidirezionale, flusso continuo - bidirektional, kontinuierlich | F38: 60 m3/h | G38: 45 m3/h | I38: 27 m³/h | J38: 0.69 | L38: N/A | M38: 0.24 | N38: TÜV SÜD | O38: WRG442 | P38: aktuell
I39: 42 m³/h | J39: 0.66 | M39: 0.27 | P39: aktuell
A40: Helty | B40: Flow 100 Flow 100 Pure | C40: HRC1b - recuperative (total thermal energy) | D40: bidirezionale, flusso continuo - bidirektional, kontinuierlich | F40: 91 | G40: 70 | I40: 23 | J40: 0.805 | L40: 0.7 | M40: 0.25 | N40: TÜV SÜD | O40: WRG 482 | P40: aktuell | Q40: 2019-05-09
I41: 45 | J41: 0.71 | L41: 0.604 | M41: 0.3 | P41: aktuell
I42: 64 | J42: 0.67 | L42: 0.566 | M42: 0.37 | P42: aktuell
I43: 81 | J43: 0.63 | L43: 0.557 | M43: 0.46 | P43: aktuell
B44: Flow 40 /Pure | C44: HRC1b - recuperative (total thermal energy) | D44: bidirezionale, flusso continuo - bidirektional, kontinuierlich | F44: 36 | G44: 25 | I44: 9.2 | J44: 0.843 | L44: 0.71 | M44: 0.36 | N44: TÜV SÜD | O44: WRG 546 | P44: aktuell | Q44: 2019-05-09
B45: Flow Plus | I45: 15.9 | J45: 0.74 | L45: 0.615 | M45: 0.32 | P45: aktuell
B46: Flow Elite | I46: 23.3 | J46: 0.697 | L46: 0.555 | M46: 0.36 | P46: aktuell
B47: Flow Easy /tinteggiabile /UV | I47: 33.2 | J47: 0.644 | L47: npd | M47: 0.49 | P47: aktuell
A48: InVENter GmbH | B48: iV-Smart+ | C48: HRC1a - recuperative (sensible thermal energy) | D48: funzionamento alternato Umschaltbetrieb | F48: 56 | G48: 42 | I48: 31 | J48: 0.64 | L48: N/A | M48: 0.15 | N48: TÜV SÜD | O48: WRG502-rev1 | P48: aktuell
B49: iV14-Zero | P49: aktuell
B50: (min. 2 apparecchi/geräte) | P50: aktuell
B51: iV-Twin+ | C51: HRC1a - recuperative (sensible thermal energy) | D51: bidirezionale, flusso continuo - bidirektional, kontinuierlich | F51: 22 | G51: 15.8 | I51: 9.6 | J51: 0.539 | L51: N/A | M51: 0.17 | N51: TÜV SÜD | O51: WRG565 | P51: aktuell
P52: aktuell
A53: liVENTO GmbH/srl | B53: AEROline Alm -S2/E3 | C53: HRC1a - recuperative (sensible thermal energy) | D53: bidirezionale, flusso continuo - bidirektional, kontinuierlich | F53: 55 m3/h | G53: 39 m3/h | I53: 15 | J53: 0.777 | L53: N/A | M53: 0.28 | P53: aktuell
I54: 24 | J54: 0.759 | L54: N/A | M54: 0.28 | P54: aktuell
I55: 36 | J55: 0.755 | L55: N/A | M55: 0.29 | N55: IGE | O55: PL.15.WLG.111.Eni | P55: aktuell
I56: 40 | J56: 0.746 | L56: N/A | M56: 0.33 | P56: aktuell
I57: 49 | J57: 0.728 | L57: N/A | M57: 0.41 | P57: aktuell
A58: Lunos | B58: Lunos – e2 | C58: HRC1a - recuperative (sensible thermal energy) | D58: funzionamento alternato Umschaltbetrieb | F58: 33 | G58: 23 | I58: 13.28 | J58: 0.482 | L58: N/A | M58: 0.18 | N58: IGE | O58: PL.17.WLG.297B.EN | P58: aktuell
A59: (Recuterm) | B59: (min. 2 apparecchi/geräte) | P59: aktuell
B60: Lunos – e260 | C60: HRC1a - recuperative (sensible thermal energy) | D60: funzionamento alternato Umschaltbetrieb | F60: 57 | G60: 40 | I60: 13.1 | J60: 0.829 | L60: N/A | M60: 0.08 | N60: IGE | O60: PL.21.WLG.370.Da.EN | P60: aktuell | Q60: 2022-03-03
I61: 35.2 | J61: 0.759 | L61: N/A | M61: 0.08 | P61: aktuell
B62: (min. 2 apparecchi/geräte) | I62: 48.9 | J62: 0.71 | L62: N/A | M62: 0.1 | P62: aktuell
A63: MAICO | B63: PP45 (O, RC) | C63: HRC1a - recuperative (sensible thermal energy) | D63: funzionamento alternato Umschaltbetrieb | F63: 42 | G63: 31 | I63: 10 | J63: 0.57 | L63: N/A | M63: 0.13 | N63: IGE | O63: PL.16.WLG.278.Ca | P63: aktuell
I64: 20 | J64: 0.55 | L64: N/A | M64: 0.1 | P64: aktuell
A65: (Imperial) | B65: (min. 2 apparecchi/geräte) | I65: 27 | J65: 0.52 | L65: N/A | M65: 0.12 | P65: aktuell
B66: WS 75 Powerbox | C66: HRC1a - recuperative (sensible thermal energy) | D66: bidirezionale, flusso continuo - bidirektional, kontinuierlich | F66: 70 | G66: 49 | I66: 19.9 | J66: 0.93 | L66: N/A | M66: 0.3 | N66: IGE | O66: PL 19WLG 357 EN | P66: aktuell | Q66: 2023-05-03 | R66: QP, daten aktualisiert
I67: 49 | J67: 0.815 | L67: N/A | M67: 0.27 | P67: aktuell
I68: 70 | J68: 0.77 | L68: N/A | M68: 0.37 | P68: aktuell
B69: M-WRG-S M-WRG-K | C69: HRC1a - recuperative (sensible thermal energy) | D69: bidirezionale, flusso continuo - bidirektional, kontinuierlich | F69: 97 m3/h | G69: 69 m3/h | I69: 14.3 | J69: 0.675 | L69: N/A | M69: 0.16 | N69: TÜV Süd | O69: WRG 430 | P69: aktuell | Q69: 2019-05-07
A70: Meltem | I70: 40.1 | J70: 0.638 | L70: N/A | M70: 0.14 | P70: aktuell
A71: (Isodomus) | I71: 57.3 | J71: 0.613 | L71: N/A | M71: 0.21 | P71: aktuell
I72: 64.8 | J72: 0.597 | L72: N/A | M72: 0.24 | P72: aktuell
I73: 92.7 | J73: 0.573 | L73: N/A | M73: 0.38 | P73: aktuell
B74: M-WRG-II P | C74: HRC1a - recuperative (sensible thermal energy) | D74: bidirezionale, flusso continuo - bidirektional, kontinuierlich | F74: 99 | G74: 70 | I74: 10 | J74: 0.94 | L74: N/A | M74: 0.44 | N74: TÜV Süd | O74: WRG 516 A | P74: aktuell | Q74: 2019-05-07
I75: 69 | J75: 0.84 | L75: N/A | M75: 0.31 | P75: aktuell
I76: 100 | J76: 0.83 | L76: N/A | M76: 0.48 | P76: aktuell
B77: M-WRG-II E | C77: HRC1b - recuperative (total thermal energy) | D77: bidirezionale, flusso continuo - bidirektional, kontinuierlich | F77: 99 | G77: 70 | I77: 10 | J77: 0.909 | L77: 0.813 | M77: 0.42 | N77: TÜV Süd | O77: WRG 516 B | P77: aktuell | Q77: 2019-05-07
I78: 70 | J78: 0.723 | L78: 0.444 | M78: 0.29 | P78: aktuell
D79: bidirezionale, flusso continuo - bidirektional, kontinuierlich | I79: 100 | J79: 0.692 | L79: 0.366 | M79: 0.48 | P79: aktuell
A80: J. Pichler Gesellschaft m.b.H | B80: LG 100 UP/AP | C80: HRC1b - recuperative (total thermal energy) | D80: bidirezionale, flusso continuo - bidirektional, kontinuierlich | F80: 60 | G80: 42 | I80: 24.9 | J80: 0.82 | L80: 0.77 | M80: 0.33 | N80: TÜV Süd | O80: WRG 610 | P80: aktuell | Q80: 2022-04-05
B81: singolo ambiente - Einzelraum | I81: 40.7 | J81: 0.772 | L81: 0.691 | M81: 0.28 | P81: aktuell
I82: 58.2 | J82: 0.739 | L82: 0.637 | M82: 0.28 | P82: aktuell
B83: LG 100 UP | C83: HRC1b - recuperative (total thermal energy) | D83: bidirezionale, flusso continuo - bidirektional, kontinuierlich | F83: 80 | G83: 56 | I83: 24.3 | J83: 0.819 | L83: 0.772 | M83: 0.44 | N83: TÜV Süd | O83: WRG 610 | P83: aktuell | Q83: 2022-04-05
B84: pluri ambienti - Mehrraum | I84: 55 | J84: 0.75 | L84: 0.643 | M84: 0.35 | P84: aktuell
I85: 77.4 | J85: 0.711 | L85: 0.576 | M85: 0.49 | P85: aktuell
A86: Straudi | B86: Posaclima PureAir | C86: HRC1b - recuperative (total thermal energy) | D86: bidirezionale, flusso continuo - bidirektional, kontinuierlich | F86: 41 | G86: 28 m³/h | I86: 14 m³/h | J86: 0.77 | L86: 0.66 | M86: 0.28 | N86: TÜV SÜD | O86: WRG438 | P86: aktuell
I87: 27 m³/h | J87: 0.7 | L87: 0.51 | M87: 0.35 | P87: aktuell
I88: 38 m³/h | J88: 0.65 | L88: 0.45 | M88: 0.52 | P88: aktuell
A89: Suedwind | B89: Ambientika (min. 2 apparecchi/geräte) | C89: HRC3b - regenerative (alternating flow dir) | D89: funzionamento alternato Umschaltbetrieb | F89: 60 m3/h | G89: 40 | I89: 13.18 | J89: 0.429 | L89: N/A | M89: 0.38 | N89: IMQ | O89: 22031SEG-08MC112_2 | P89: aktuell | Q89: 2023-09-25 | R89: neuer Prüfbericht
I90: 24.25 | J90: 0.41 | L90: N/A | M90: 0.24 | P90: aktuell | Q90: 2023-09-25
A91: Südtirol Fenster | B91: ISO-bloc-air ® | C91: HRC1a - recuperative (sensible thermal energy) | D91: bidirezionale, flusso continuo - bidirektional, kontinuierlich | F91: 37 | G91: 25.5 | I91: 10.4 | J91: 0.77 | L91: N/A | M91: 0.51 | N91: TÜV SÜD | O91: WRG535 rev1 | P91: aktuell | Q91: 2019-07-03 | R91: Messstufen ergänzt
I92: 22.7 | J92: 0.691 | L92: N/A | M92: 0.4 | P92: aktuell
I93: 32.4 | J93: 0.643 | L93: N/A | M93: 0.57 | P93: aktuell
A94: Thesan - Savio Group | B94: Aircare AF | C94: HRC3 - regenerative | D94: unidirezionale - unidirektional | F94: 40 | G94: 28 | I94: 16 m³/h | J94: 0 | L94: N/A | M94: 0.25 | N94: TÜV SÜD | O94: WRG 339 | P94: delete | Q94: 2022-09-06
I95: 24 m³/h | J95: 0 | L95: N/A | M95: 0.21 | P95: delete
I96: 28 m³/h | J96: 0 | L96: N/A | M96: 0.25 | P96: delete
I97: 33 m³/h | J97: 0 | L97: N/A | M97: 0.27 | P97: delete
I98: 40 m³/h | J98: 0 | L98: N/A | M98: 0.33 | P98: delete
B99: Thesan - Aircare ES | C99: HRC1b - recuperative (total thermal energy) | D99: bidirezionale, flusso continuo - bidirektional, kontinuierlich | F99: 41 | G99: 28 m³/h | I99: 14 | J99: 0.77 | L99: 0.66 | M99: 0.28 | N99: TÜV SÜD | O99: WRG438 | P99: aktuell | Q99: 2022-09-06 | R99: gelöscht
I100: 27 | J100: 0.7 | L100: 0.51 | M100: 0.35 | P100: aktuell | Q100: 2023-07-01 | R100: erneuert
I101: 38 | J101: 0.65 | L101: 0.45 | M101: 0.52 | P101: aktuell
B102: Air fox | C102: HRC3 - regenerative | D102: funzionamento alternato Umschaltbetrieb | F102: 47 | G102: 35 | I102: 22.1 | J102: 0.548 | L102: N/A | M102: 0.16 | N102: IGE | O102: PL.21.WLG.395C.EN | P102: aktuell | Q102: 2023-03-21 | R102: neuer PB
A103: Top Air | B103: (min. 2 apparecchi/geräte) | P103: aktuell | Q103: 2019-05-09 | R103: Datum alte daten
A104: (Roos) | B104: Air mini | C104: HRC3 - regenerative | D104: funzionamento alternato Umschaltbetrieb | F104: 60 | G104: 42 | I104: 52 | J104: 0.55 | L104: N/A | M104: 0.45 | N104: IGE | O104: PL14WLG199 (ERP) | P104: aktuell | Q104: 2019-08-20
B105: (min. 2 apparecchi/geräte) | P105: aktuell
B106: R-Tube 40 | C106: HRC1a - recuperative (sensible thermal energy) | D106: bidirezionale, flusso continuo - bidirektional, kontinuierlich | F106: 40 | G106: 28 | I106: 8.4 | J106: 0.787 | L106: N/A | M106: 0.27 | N106: IGE | O106: PL.17.WLG.309.C2.EN | P106: aktuell | Q106: 2019-05-09
I107: 17.6 | J107: 0.691 | L107: N/A | M107: 0.16 | P107: aktuell
I108: 25.5 | J108: 0.633 | L108: N/A | M108: 0.15 | P108: aktuell
I109: 35 | J109: 0.583 | L109: N/A | M109: 0.18 | P109: aktuell
B110: R-Tube 60 | C110: HRC1a - recuperative (sensible thermal energy) | D110: bidirezionale, flusso continuo - bidirektional, kontinuierlich | F110: 60 | G110: 42 | I110: 9 | J110: 0.86 | L110: N/A | M110: 0.27 | N110: IGE | O110: PL.17.WLG.309.C1.EN | P110: aktuell | Q110: 2019-05-09
I111: 19 | J111: 0.76 | L111: N/A | M111: 0.16 | P111: aktuell | Q111: 2019-08-20 | R111: Daten korrigiert
I112: 28 | J112: 0.69 | L112: N/A | M112: 0.15 | P112: aktuell
I113: 38 | J113: 0.64 | L113: N/A | M113: 0.18 | P113: aktuell
I114: 55 | J114: 0.61 | L114: N/A | M114: 0.26 | P114: aktuell
A115: Ventomaxx | B115: WRG RONDO IQ (FA-LAW-K, G3) (min. 2 apparecchi/geräte) | C115: HRC3 - regenerative | D115: funzionamento alternato Umschaltbetrieb | F115: 46 | G115: 32 | I115: 19.8 | J115: 0.514 | L115: N/A | M115: 0.14 | N115: TÜV-Süd | O115: WRG 503 | P115: delete | Q115: 2022-06-08
A116: (Loex) | B116: SMART RONDO HRV (Gl150, G3) (min. 2 apparecchi/geräte) | C116: HRC3 - regenerative | D116: funzionamento alternato Umschaltbetrieb | F116: 58 | G116: 41 | I116: 21.1 | J116: 0.433 | L116: N/A | M116: 0.1 | O116: WRG 503 | P116: delete | Q116: 2022-06-08
B117: WRG RONDO PLUS (FA-LAW-K, G3) (min. 2 apparecchi/geräte) | C117: HRC3 - regenerative | D117: funzionamento alternato Umschaltbetrieb | F117: 39 | G117: 28 | I117: 14 | J117: 0.43 | L117: N/A | M117: 0.13 | P117: delete | Q117: 2022-06-08
B118: WRG RONDO PLUS (Gl150, G3) (min. 2 apparecchi/geräte) | C118: HRC3 - regenerative | D118: funzionamento alternato Umschaltbetrieb | F118: 47 | G118: 33 | I118: 18 | J118: 0.45 | L118: N/A | M118: 0.11 | O118: WRG 503 | P118: delete | Q118: 2022-06-08
A119: Wolf Italia (Brink Climate System) | B119: CWL-D 70 | C119: HRC1a - recuperative (sensible thermal energy) | D119: bidirezionale, flusso continuo - bidirektional, kontinuierlich | F119: 70 m3/h | G119: 49 | I119: 46 m³/h | J119: 0.73 | L119: N/A | M119: 0.2 | N119: TZWL | O119: M.85.09.204.AK | P119: aktuell
A120: Zehnder | B120: ComfoSpot 50 | C120: HRC1b - recuperative (total thermal energy) | D120: bidirezionale, flusso continuo - bidirektional, kontinuierlich | F120: 50 m3/h | G120: 35 | I120: 13 | J120: 0.76 | L120: 0.744 | M120: 0.27 | N120: TÜV SÜD | O120: WRG474 | P120: aktuell
I121: 22 | J121: 0.66 | L121: 0.581 | M121: 0.22 | P121: aktuell
I122: 30 | J122: 0.61 | L122: 0.495 | M122: 0.23 | P122: aktuell
I123: 35 | J123: 0.58 | L123: 0.46 | M123: 0.27 | P123: aktuell
I124: 43 | J124: 0.55 | L124: 0.439 | M124: 0.29 | P124: aktuell
B125: ComfoAir 70 | C125: HRC1b - recuperative (total thermal energy) | D125: bidirezionale, flusso continuo - bidirektional, kontinuierlich | F125: 59 | G125: 41 | I125: 13.9 | J125: 0.822 | L125: 0.85 | M125: 0.26 | N125: TÜV SÜD | O125: WRG 409 | P125: aktuell | Q125: 2019-01-11
I126: 25.9 | J126: 0.765 | L126: 0.75 | M126: 0.19 | P126: aktuell
I127: 38.8 | J127: 0.704 | L127: 0.62 | M127: 0.21 | P127: aktuell
I128: 54.5 | J128: 0.656 | L128: 0.55 | M128: 0.3 | P128: aktuell
P129: aktuell
A130: Limot | B130: Airodor 30 (min. 2 apparecchi/geräte) | C130: HRC3 - regenerative | D130: funzionamento alternato Umschaltbetrieb | F130: 37 m3/h | G130: 26 m3/h | I130: 7 m³/h | J130: 0.22 | L130: N/A | M130: 0.12 | N130: TÜV-Süd | O130: WRG391 | P130: aktuell
B131: =COUNTIFS(B5:B130,"<>",P5:P130,"aktuell") -> 49 | D131: =COUNTIFS(D5:D130,"<>") -> 44 | E131: =COUNTIFS(E5:E130,"<>",P5:P130,"aktuell") -> 0

Sheet OLD_ducted (hidden)
A1: Produttore / Rivenditore | B1: Prodotto | C1: Portata massima | D1: Portata nominale | E1: Portata test | F1: Efficienza del recuperatore | H1: Assorbimento elettrico totale | I1: Istituto di Prova | J1: rapporto di prova | K1: Norme/regolamento di prova
A2: Hersteller / Reseller | B2: Produkt | C2: Höchster Luftvolumenstrom | D2: Bezugs-Luftvolumenstrom | E2: Prüf-Luftvolumenstrom | F2: Rückgewinnungsgrad | H2: Stromaufnaheme | I2: Prüfinstitut | J2: Prüfbericht | K2: Prüfnorm u/o Richtlinie
C3: qv,max | D3: qv,nom | E3: qv,test | F3: ɳθ,su | G3: ɳx,su | H3: SFP | J3: Nr.
A4: Aerauliqa | B4: QCMEV | C4: 230 m3/h | D4: 161 m3/h | E4: 76 m³/h | F4: 0 | G4: 0 | H4: 0,048 Wh/m³ | I4: BRE | J4: 295934 | K4: SAP – EN 13141-7
E5: 104 m³/h | F5: 0 | G5: 0 | H5: 0,043 Wh/m³
E6: 133 m³/h | F6: 0 | G6: 0 | H6: 0,048 Wh/m³
E7: 162 m³/h | F7: 0 | G7: 0 | H7: 0,056 Wh/m³
E8: 191 m³/h | F8: 0 | G8: 0 | H8: 0,066 Wh/m³
E9: 220 m³/h | F9: 0 | G9: 0 | H9: 0,078 Wh/m³
B10: QR200 | C10: 197 m3/h | D10: 138 m3/h | E10: 76 m³/h | F10: 0.86 | G10: 0 | H10: 0,24 Wh/m³ | I10: BRE | J10: 293591 | K10: SAP – EN 308:1997
E11: 104 m³/h | F11: 0.85 | G11: 0 | H11: 0,29 Wh/m³
E12: 133 m³/h | F12: 0.83 | G12: 0 | H12: 0,34 Wh/m³
E13: 162 m³/h | F13: 0.81 | G13: 0 | H13: 0,44 Wh/m³
B14: QR 350 | C14: 327 m3/h | D14: 229 m3/h | E14: 76 m³/h | F14: 0.89 | G14: 0 | H14: 0.27 | I14: BRE | J14: P103264-1001 | K14: SAP – EN 308:1997
E15: 104 m³/h | F15: 0.88 | G15: 0 | H15: 0.32
E16: 133 m³/h | F16: 0.87 | G16: 0 | H16: 0.39
B17: QR400 | C17: 363 m3/h | D17: 254 m3/h | E17: 76 m³/h | F17: 0.92 | G17: 0 | H17: 0,16 Wh/m³ | I17: BRE | J17: 295935 | K17: SAP – EN 308:1997
E18: 104 m³/h | F18: 0.9 | G18: 0 | H18: 0,17 Wh/m³
E19: 133 m³/h | F19: 0.89 | G19: 0 | H19: 0,18 Wh/m³
E20: 162 m³/h | F20: 0.89 | G20: 0 | H20: 0,22 Wh/m³
E21: 191 m³/h | F21: 0.88 | G21: 0 | H21: 0,25 Wh/m³
E22: 220 m³/h | F22: 0.87 | G22: 0 | H22: 0,29 Wh/m³
E23: 248 m³/h | F23: 0.86 | G23: 0 | H23: 0,35 Wh/m³
B24: QR550 | C24: 520 m3/h | D24: 364 m3/h | E24: 76 m³/h | F24: 0.93 | G24: 0 | H24: 0.16 | I24: BRE | J24: P103264-1002 | K24: SAP – EN 308:1998
E25: 104 m³/h | F25: 0.93 | G25: 0 | H25: 0.16
E26: 133 m³/h | F26: 0.91 | G26: 0 | H26: 0.18
E27: 162 m³/h | F27: 0.91 | G27: 0 | H27: 0.21
E28: 191 m³/h | F28: 0.9 | G28: 0 | H28: 0.24
E29: 220 m³/h | F29: 0.89 | G29: 0 | H29: 0.29
E30: 248 m³/h | F30: 0.89 | G30: 0 | H30: 0.34
A31: Aerex Haustechnik-systeme | B31: Reco-Boxx 170 | C31: 160 m3/h | D31: 112 m3/h | E31: 67 m³/h | F31: 0.88 | G31: 0 | H31: 0,38 Wh/m³ | I31: IGE | J31: PL.12.WLG.136.PH | K31: Regolamento PHI
E32: 88 m³/h | F32: 0.86 | G32: 0 | H32: 0,36 Wh/m³
B33: Reco_Boxx Comfort | C33: 250 m3/h | D33: 175 m3/h | E33: 127 m³/h | F33: 0.89 | G33: 0 | H33: 0,49 Wh/m³ | I33: TÜV | J33: WRG 019 | K33: Regolamento DIBt LÜ-A Nr. 20
E34: 203 m³/h | F34: 0.84 | G34: 0 | H34: 0,42 Wh/m³
B35: Reco-Boxx Mini | C35: - | D35: - | E35: 84 m³/h | F35: 0.88 | G35: 0 | H35: 0,15 Wh/m³ | I35: TÜV | J35: WRG 101c | K35: Regolamento DIBt LÜ-A Nr. 20
E36: 124 m³/h | F36: 0.88 | G36: 0 | H36: 0,24 Wh/m³
B37: Reco-Boxx 300 | C37: 300 m3/h | D37: 210 m3/h | E37: 95 m³/h | F37: 0.89 | G37: 0 | H37: 0,33 Wh/m³ | I37: TÜV | J37: WRG 135 | K37: Regolamento DIBt LÜ-A Nr. 20
E38: 150 m³/h | F38: 0.87 | G38: 0 | H38: 0,30 Wh/m³
E39: 237 m³/h | F39: 0.84 | G39: 0 | H39: 0,36 Wh/m³
B40: Reco-Boxx 400 | C40: 400 m3/h | D40: 280 m3/h | E40: 126 m³/h | F40: 0.89 | G40: 0 | H40: 0,32 Wh/m³ | I40: TÜV | J40: WRG 143b | K40: Regolamento DIBt LÜ-A Nr. 20
E41: 191 m³/h | F41: 0.86 | G41: 0 | H41: 0,34 Wh/m³
E42: 312 m³/h | F42: 0.81 | G42: 0 | H42: 0,36 Wh/m³
B43: Reco-Boxx 600 | C43: 620 m3/h | D43: 432 m3/h | E43: 186 m³/h | F43: 0.87 | G43: 0 | H43: 0,22 Wh/m³ | I43: TÜV | J43: WRG 156 (Rev1) | K43: Regolamento DIBt LÜ-A Nr. 20
E44: 315 m³/h | F44: 0.83 | G44: 0 | H44: 0,23 Wh/m³
E45: 487 m³/h | F45: 0.8 | G45: 0 | H45: 0,36 Wh/m³
A46: Aermec | B46: Repuro 100 | C46: 92 | D46: 64 | E46: 75.6 | F46: 0.876 | G46: 0 | H46: 0.253 | I46: BRE | J46: P100891-1005 | K46: SAP – EN 308:1997 - EN 13141-7
E47: 104.4 | F47: 0.856 | G47: 0 | H47: 0.267
B48: Repuro 170 | C48: 130 | D48: 91 | E48: 80 | F48: 0.88 | G48: 0 | H48: 0.28 | I48: BRE | J48: P100891-1002 | K48: SAP – EN 308:1997 - EN 13141-7
E49: 120 | F49: 0.86 | G49: 0 | H49: 0.3
E50: 159 | F50: 0.83 | G50: 0 | H50: 0.33
B51: Repuro 250/250R | C51: 250 | D51: 175 | E51: 75.6 | F51: 0.88 | G51: 0 | H51: =0.75/3.6 -> 0.2083333333 | I51: BRE | J51: P100891-1006 | K51: SAP – EN 308:1997 - EN 13141-7
E52: 104.4 | F52: 0.876 | G52: 0 | H52: =0.73/3.6 -> 0.2027777778
E53: 133.2 | F53: 0.871 | G53: 0 | H53: =0.8/3.6 -> 0.2222222222
E54: 162 | F54: 0.86 | G54: 0 | H54: =0.96/3.6 -> 0.2666666667
E55: 190.8 | F55: 0.854 | G55: 0 | H55: =1.12/3.6 -> 0.3111111111
E56: 219.6 | F56: 0.85 | G56: 0 | H56: =1.36/3.6 -> 0.3777777778
B57: Repuro 350/350R | C57: 350 | D57: 246 | E57: 89 | F57: 0.88 | G57: 0 | H57: 0.33 | I57: BRE | J57: P100891-1001 | K57: SAP – EN 308:1997 - EN 13141-7
E58: 178 | F58: 0.86 | G58: 0 | H58: 0.3
E59: 267 | F59: 0.84 | G59: 0 | H59: 0.37
E60: 356 | F60: 0.82 | G60: 0 | H60: 0.47
B61: RePuro 450/450R | C61: 450 | D61: 315 | E61: 75.6 | F61: 0.899 | G61: 0 | H61: =0.84/3.6 -> 0.2333333333 | I61: BRE | J61: P100891-1007 | K61: SAP – EN 308:1997 - EN 13141-7
E62: 104.4 | F62: 0.896 | G62: 0 | H62: =0.77/3.6 -> 0.2138888889
E63: 133.2 | F63: 0.887 | G63: 0 | H63: =0.8/3.6 -> 0.2222222222
E64: 162 | F64: 0.883 | G64: 0 | H64: =0.9/3.6 -> 0.25
E65: 190.8 | F65: 0.881 | G65: 0 | H65: =1.03/3.6 -> 0.2861111111
E66: 219.6 | F66: 0.871 | G66: 0 | H66: =1.22/3.6 -> 0.3388888889
E67: 248.4 | F67: 0.867 | G67: 0 | H67: =1.42/3.6 -> 0.3944444444
B68: RePuro 550/550R | C68: 550 | D68: 399 | E68: 75.6 | F68: 0.899 | G68: 0 | H68: =0.83/3.6 -> 0.2305555556 | I68: BRE | J68: P100891-1008 | K68: SAP – EN 308:1997 - EN 13141-7
E69: 104.4 | F69: 0.896 | G69: 0 | H69: =0.78/3.6 -> 0.2166666667
E70: 133.2 | F70: 0.887 | G70: 0 | H70: =0.82/3.6 -> 0.2277777778
E71: 162 | F71: 0.883 | G71: 0 | H71: =0.91/3.6 -> 0.2527777778
E72: 190.8 | F72: 0.881 | G72: 0 | H72: =1.07/3.6 -> 0.2972222222
E73: 219.6 | F73: 0.871 | G73: 0 | H73: =1.24/3.6 -> 0.3444444444
E74: 248.4 | F74: 0.867 | G74: 0 | H74: =1.44/3.6 -> 0.4
B75: RePuro 650/650R | C75: 620 | D75: 434 | E75: 75.6 | F75: 0.899 | G75: 0 | H75: =0.85/3.6 -> 0.2361111111 | I75: BRE | J75: P100891-1009 | K75: SAP – EN 308:1997 - EN 13141-7
E76: 104.4 | F76: 0.896 | G76: 0 | H76: =0.79/3.6 -> 0.2194444444
E77: 133.2 | F77: 0.887 | G77: 0 | H77: =0.84/3.6 -> 0.2333333333
E78: 162 | F78: 0.883 | G78: 0 | H78: =0.92/3.6 -> 0.2555555556
E79: 190.8 | F79: 0.881 | G79: 0 | H79: =1.04/3.6 -> 0.2888888889
E80: 219.6 | F80: 0.871 | G80: 0 | H80: =1.28/3.6 -> 0.3555555556
E81: 248.4 | F81: 0.867 | G81: 0 | H81: =1.45/3.6 -> 0.4027777778
A82: Aldes | B82: DFE 450 | C82: - | D82: 396 m3/h | E82: 450 m³/h | F82: 0.86 | G82: 0 | H82: 0,50 Wh/m³ (*) | I82: EUROVENT | J82: 05-03.243 | K82: EN 308 + OM-8-2009
B83: DEE FLY | C83: 290 m3/h | D83: 212 m3/h | E83: 125 m³/h | F83: 0.82 | G83: 0 | H83: 0,22 Wh/m³ | I83: CETIAT | J83: 10142272/1 | K83: NF EN 13141-7:2004
A84: Atlantic CVI | B84: Optimocosy HR | C84: 316 m3/h | D84: 216 m3/h | E84: 110 m³/h | F84: 0.84 | G84: 0 | H84: 0,33 Wh/m³ | I84: CETIAT | J84: 1414366 | K84: NF 205 REV.6; NF EN 12102
A85: Balzer Lüfter | B85: HRV30 | E85: 109 m³/h | F85: 0.87 | G85: 0 | H85: 0,22 Wh/m³ | I85: LKE | J85: PL 00R09.02 | K85: Regolamento DIBt LÜ-A Nr. 20
E86: 168 m³/h | F86: 0.88 | G86: 0 | H86: 0,29 Wh/m³
E87: 290 m³/h | F87: 0.82 | G87: 0 | H87: 0,63 Wh/m³
A88: Brink Climate System | B88: Renovent Excellent 300 | C88: 300 m3/h | D88: 210 m3/h | E88: 50 m³/h | F88: 0.9 | G88: 0 | H88: 0,18 Wh/m³ | I88: TNO | J88: 2013 M10230 | K88: EN308:1997 EN13141-7:2004
A89: (Centrotherm) | E89: 175 m³/h | F89: 0.85 | G89: 0 | H89: 0,17 Wh/m³ | K89: EN13141-7:2004
A90: (Airplast) | E90: 300 m³/h | F90: 0.82 | G90: 0 | H90: 0,33 Wh/m³
B91: Renovent Excellent 400 | C91: 400 m3/h | D91: 280 m3/h | E91: 50 m³/h | F91: 0.93 | G91: 0 | H91: 0,19 Wh/m³ | I91: TNO | J91: BRR 060-APD-2011-00068 | K91: EN308:1997 EN13141-7:2004
E92: 225 m³/h | F92: 0.85 | G92: 0 | H92: 0,22 Wh/m³ | K92: EN13141-7:2004
E93: 400 m³/h | F93: 0.81 | G93: 0 | H93: 0,39 Wh/m³
B94: Renovent Sky 300 | C94: 300 m3/h | D94: 210 m3/h | E94: 50 m³/h | F94: 0.96 | G94: 0 | H94: 0,26 Wh/m³ | I94: TNO | J94: 2012 M10384 | K94: EN308:1997 EN13141-7:2004
E95: 175 m³/h | F95: 0.86 | G95: 0 | H95: 0,18 Wh/m³ | K95: EN13141-7:2004
E96: 300 m³/h | F96: 0.82 | G96: 0 | H96: 0,36 Wh/m³
A97: Drexel & Weiss | B97: Aerosilent bianco | E97: 95 m³/h | F97: 0.87 | G97: 0 | H97: 0,29 Wh/m³ | I97: PHI | J97: 1209038 | K97: Regolamento PHI
B98: Aerosmart m | E98: 230 m³/h | F98: 0.78 | G98: 0 | H98: 0,29 Wh/m³ | I98: PHI | J98: PHI | K98: Regolamento PHI
B99: Aerosmart x2 | E99: 230 m³/h | F99: 0.83 | G99: 0 | H99: 0,38 Wh/m³ | I99: HTA | J99: HP 09817 | K99: Regolamento PHI
A100: Dynair | B100: Aera in linea | E100: 54 m³/h | F100: 0.91 | G100: 0 | H100: 0,47 Wh/m³ | I100: BRE | K100: EN 308:1997
E101: 76 m³/h | F101: 0.91 | G101: 0 | H101: 0,47 Wh/m³
E102: 97 m³/h | F102: 0.9 | G102: 0 | H102: 0,47 Wh/m³
E103: 119 m³/h | F103: 0.89 | G103: 0 | H103: 0,47 Wh/m³
B104: Aera 280 | E104: 54 m³/h | F104: 0.93 | G104: 0 | H104: 0,36 Wh/m³ | I104: BRE | K104: EN 308:1997
E105: 76 m³/h | F105: 0.93 | G105: 0 | H105: 0,36 Wh/m³
E106: 97 m³/h | F106: 0.92 | G106: 0 | H106: 0,36 Wh/m³
E107: 119 m³/h | F107: 0.91 | G107: 0 | H107: 0,36 Wh/m³
E108: 140 m³/h | F108: 0.9 | G108: 0 | H108: 0,36 Wh/m³
E109: 162 m³/h | F109: 0.9 | G109: 0 | H109: 0,36 Wh/m³
A110: Elicent | B110: Aera in linea | E110: 54 m³/h | F110: 0.91 | G110: 0 | H110: 0,47 Wh/m³ | I110: BRE | K110: EN 308:1997
E111: 76 m³/h | F111: 0.91 | G111: 0 | H111: 0,47 Wh/m³
E112: 97 m³/h | F112: 0.9 | G112: 0 | H112: 0,47 Wh/m³
E113: 119 m³/h | F113: 0.89 | G113: 0 | H113: 0,47 Wh/m³
B114: Aera 280 | E114: 54 m³/h | F114: 0.93 | G114: 0 | H114: 0,36 Wh/m³ | I114: BRE | K114: EN 308:1997
E115: 76 m³/h | F115: 0.93 | G115: 0 | H115: 0,36 Wh/m³
E116: 97 m³/h | F116: 0.92 | G116: 0 | H116: 0,36 Wh/m³
E117: 119 m³/h | F117: 0.91 | G117: 0 | H117: 0,36 Wh/m³
E118: 140 m³/h | F118: 0.9 | G118: 0 | H118: 0,36 Wh/m³
E119: 162 m³/h | F119: 0.9 | G119: 0 | H119: 0,36 Wh/m³
A120: Emmeti | B120: Recupera Slim-120 | C120: 197 m3/h | D120: 138 m3/h | E120: 76 m³/h | F120: 0.86 | G120: 0 | H120: 0,24 Wh/m³ | I120: BRE | J120: 293591 | K120: SAP – EN 308:1997
E121: 104 m³/h | F121: 0.85 | G121: 0 | H121: 0,29 Wh/m³
E122: 133 m³/h | F122: 0.83 | G122: 0 | H122: 0,34 Wh/m³
E123: 162 m³/h | F123: 0.81 | G123: 0 | H123: 0,44 Wh/m³
B124: Recupera Med-300 | C124: 363 m3/h | D124: 254 m3/h | E124: 76 m³/h | F124: 0.92 | G124: 0 | H124: 0,16 Wh/m³ | I124: BRE | J124: 295935 | K124: SAP – EN 308:1997
E125: 104 m³/h | F125: 0.9 | G125: 0 | H125: 0,17 Wh/m³
E126: 133 m³/h | F126: 0.89 | G126: 0 | H126: 0,18 Wh/m³
E127: 162 m³/h | F127: 0.89 | G127: 0 | H127: 0,22 Wh/m³
E128: 191 m³/h | F128: 0.88 | G128: 0 | H128: 0,25 Wh/m³
E129: 220 m³/h | F129: 0.87 | G129: 0 | H129: 0,29 Wh/m³
E130: 248 m³/h | F130: 0.86 | G130: 0 | H130: 0,35 Wh/m³
A131: Ensy | B131: AHU 400 BV/BH | C131: 470 m3/h | D131: 330 m3/h | E131: 178 m³/h | F131: 0.81 | G131: 0 | H131: 0.32 | I131: IGE | J131: PL.15.WLG.249.EN | K131: EN13141-7:2011
E132: 325 m³/h | F132: 0.81 | G132: 0 | H132: 0.41
E133: 465 m³/h | F133: 0.79 | G133: 0 | H133: 0.67
A134: Eurotherm | B134: Deuclima VMC | C134: 150 m3/h | D134: 105 m3/h | E134: 105 m³/h | F134: 0.89 | G134: 0 | H134: 0,50 Wh/m3 | I134: Hochschule | J134: HP-07658 | K134: EN 13141-7:2011 (Recair)
E135: 150 m³/h | F135: 0.85 | G135: 0 | H135: 0,50 Wh/m4
B136: Deuclima VMC 300 V | C136: 250 m3/h | D136: 175 m3/h | E136: 175 m³/h | F136: 0.9 | G136: 0 | H136: 0,50 Wh/m5 | I136: Hochschule | J136: HP-07658 | K136: EN 13141-7:2011 (Recair)
E137: 250 m³/h | F137: 0.87 | G137: 0 | H137: 0,50 Wh/m6
B138: Deuclima VMC 500 V | C138: 350 m3/h | D138: 190 m3/h | E138: 190 m³/h | F138: 0.9 | G138: 0 | H138: 0,50 Wh/m7 | I138: Hochschule | J138: HP-07658 | K138: EN 13141-7:2011 (Recair)
E139: 350 m³/h | F139: 0.84 | G139: 0 | H139: 0,50 Wh/m8
A140: Fränkische | B140: profi-air 180 sensor | C140: 0 | D140: 126 m3/h | E140: 62 m³/h | F140: 0.84 | G140: 0 | H140: 0.15 | I140: IGE | J140: PL.09.WLG.68 | K140: Regolamento DIBt LÜ-A Nr. 20
E141: 95 m³/h | F141: 0.83 | G141: 0 | H141: 0.16
E142: 145 m³/h | F142: 0.82 | G142: 0 | H142: 0.24
B143: Profi-air 300 sensor | C143: 300 m3/h | D143: 210 m3/h | E143: 100 m³/h | F143: 0.89 | G143: 0 | H143: 0.13 | I143: IGE | J143: PL.09.WLG.67 | K143: Regolamento DIBt LÜ-A Nr. 20
E144: 155 m³/h | F144: 0.89 | G144: 0 | H144: 0.15
E145: 241 m³/h | F145: 0.86 | G145: 0 | H145: 0.23
A146: Helios | B146: KWL EC 220D | E146: 86 m³/h | F146: 0.82 | G146: 0 | H146: 0,26 Wh/m³ | I146: TÜV Süd | J146: WRG 147 | K146: DIN EN 308
A147: (Farko) | E147: 136 m³/h | F147: 0.81 | G147: 0 | H147: 0,31 Wh/m³
B148: KWL EC 300 | E148: 100 m³/h | F148: 0.85 | G148: 0 | H148: 0,24 Wh/m³ | I148: TÜV Süd | J148: WRG 165 | K148: DIN EN 308
E149: 153 m³/h | F149: 0.84 | G149: 0 | H149: 0,31 Wh/m³
E150: 251 m³/h | F150: 0.8 | G150: 0 | H150: 0,42 Wh/m³
B151: KWL EC 500 | E151: 122 m³/h | F151: 0.88 | G151: 0 | H151: 0,24 Wh/m³ | I151: TÜV Süd | J151: WRG 150 | K151: DIN EN 308
E152: 196 m³/h | F152: 0.88 | G152: 0 | H152: 0,28 Wh/m³
E153: 291 m³/h | F153: 0.87 | G153: 0 | H153: 0,34 Wh/m³
A154: Hidew | B154: ROE 010 | E154: 100 m³/h | F154: 0.92 | G154: 0 | H154: 0,50 Wh/m³ (*) | I154: Hochschule | J154: HP-07658 | K154: EN 13141-7:2011 (Recair)
B155: ROE 020 | E155: 200 m³/h | F155: 0.9 | G155: 0 | H155: 0,50 Wh/m³ (*) | I155: Hochschule | J155: HP-07658 | K155: EN 13141-7:2011 (Recair)
B156: ROE 035 | E156: 350 m³/h | F156: 0.88 | G156: 0 | H156: 0,50 Wh/m³ (*) | I156: Hochschule | J156: HP-07658 | K156: EN 13141-7:2011 (Recair)
B157: ROE 050 | E157: 500 m³/h | F157: 0.86 | G157: 0 | H157: 0,50 Wh/m³ (*) | I157: Hochschule | J157: HP-07658 | K157: EN 13141-7:2011 (Recair)
B158: RVE 035 | E158: 350 m³/h | F158: 0.89 | G158: 0 | H158: 0,50 Wh/m³ (*) | I158: Hochschule | J158: HP-07658 | K158: EN 13141-7:2011 (Recair)
B159: RVE 050 | E159: 500 m³/h | F159: 0.86 | G159: 0 | H159: 0,50 Wh/m³ (*) | I159: Hochschule | J159: HP-07658 | K159: EN 13141-7:2011 (Recair)
A160: Hidros | B160: GHE-25 | E160: 84 m³/h | F160: 0.93 | G160: 0 | H160: 0,50 Wh/m³ (*) | I160: Hochschule | J160: HP-07658 | K160: EN 308:1997
E161: 120 m³/h | F161: 0.9 | G161: 0 | H161: 0,50 Wh/m³ (*)
E162: 172 m³/h | F162: 0.87 | G162: 0 | H162: 0,50 Wh/m³ (*)
B163: GHE-50 | E163: 138 m³/h | F163: 0.9 | G163: 0 | H163: 0,50 Wh/m³ (*) | I163: Hochschule | J163: HP-07658 | K163: EN 308:1997
E164: 206 m³/h | F164: 0.88 | G164: 0 | H164: 0,50 Wh/m³ (*)
E165: 308 m³/h | F165: 0.85 | G165: 0 | H165: 0,50 Wh/m³ (*)
A166: Inno-Products | B166: Bambino 150 BY-D/-W | E166: 45 m³/h | F166: 0.91 | G166: 0 | H166: 0,28 Wh/m³ | I166: TÜV Süd | J166: WRG 236 | K166: DIN EN 308
E167: 65 m³/h | F167: 0.92 | G167: 0 | H167: 0,30 Wh/m³
E168: 96 m³/h | F168: 0.94 | G168: 0 | H168: 0,41 Wh/m³
A169: Irsap | B169: IRSAIR 150 H-V | E169: 150 m³/h | F169: 0.87 | G169: 0 | H169: 0,57 Wh/m³ | I169: Hochschule | J169: HP-07658 | K169: EN 13141-7:2011 (Recair)
B170: IRSAIR 220 H-V | E170: 220 m³/h | F170: 0.86 | G170: 0 | H170: 0,77 Wh/m³ | I170: Hochschule | J170: HP-07658 | K170: EN 13141-7:2011 (Recair)
B171: IRSAIR 350 H | E171: 350 m³/h | F171: 0.88 | G171: 0 | H171: 0,48 Wh/m³ | I171: Hochschule | J171: HP-07658 | K171: EN 13141-7:2011 (Recair)
B172: IRSAIR 350 V | E172: 350 m³/h | F172: 0.9 | G172: 0 | H172: 0,48 Wh/m³ | I172: Hochschule | J172: HP-07658 | K172: EN 13141-7:2011 (Recair)
B173: IRSAIR 500 H | E173: 500 m³/h | F173: 0.83 | G173: 0 | H173: 0,68 Wh/m³ | I173: Hochschule | J173: HP-07658 | K173: EN 13141-7:2011 (Recair)
B174: IRSAIR 500 V | E174: 500 m³/h | F174: 0.86 | G174: 0 | H174: 0,68 Wh/m³ | I174: Hochschule | J174: HP-07658 | K174: EN 13141-7:2011 (Recair)
B175: IRSAIR 850 H-V | E175: 800 m³/h | F175: 0.87 | G175: 0 | H175: 0,43 Wh/m³ | I175: Hochschule | J175: HP-07658 | K175: EN 13141-7:2011 (Recair)
B176: IRSAIR 1200 H-V | E176: 1200 m³/h | F176: 0.84 | G176: 0 | H176: 0,98 Wh/m³ | I176: Hochschule | J176: HP-07658 | K176: EN 13141-7:2011 (Recair)
A177: Lindab | B177: RFI Lite | E177: 138 m³/h | F177: 0.9 | G177: 0 | H177: 0,50 Wh/m³ (*) | I177: Hochschule | J177: HP-07658 | K177: EN 308:1997
E178: 206 m³/h | F178: 0.88 | G178: 0 | H178: 0,50 Wh/m³ (*)
E179: 308 m³/h | F179: 0.85 | G179: 0 | H179: 0,50 Wh/m³ (*)
B180: RFI 350 H - RFI 500 H - LEM 400 | E180: 138 m³/h | F180: 0.89 | G180: 0 | H180: 0,50 Wh/m³ (*) | I180: Hochschule | J180: HP-07658 | K180: EN 308:1997
B181: LEM 600 - RFI TOP 1000 e 2000 | E181: 206 m³/h | F181: 0.87 | G181: 0 | H181: 0,50 Wh/m³ (*)
E182: 308 m³/h | F182: 0.83 | G182: 0 | H182: 0,50 Wh/m³ (*)
A183: Maico Italia | B183: Aera in linea | E183: 54 m³/h | F183: 0.91 | G183: 0 | H183: 0,47 Wh/m³ | I183: BRE | K183: EN 308:1997
E184: 76 m³/h | F184: 0.91 | G184: 0 | H184: 0,47 Wh/m³
E185: 97 m³/h | F185: 0.9 | G185: 0 | H185: 0,47 Wh/m³
E186: 119 m³/h | F186: 0.89 | G186: 0 | H186: 0,47 Wh/m³
B187: Aera 280 | E187: 54 m³/h | F187: 0.93 | G187: 0 | H187: 0,36 Wh/m³ | I187: BRE | K187: EN 308:1997
E188: 76 m³/h | F188: 0.93 | G188: 0 | H188: 0,36 Wh/m³
E189: 97 m³/h | F189: 0.92 | G189: 0 | H189: 0,36 Wh/m³
E190: 119 m³/h | F190: 0.91 | G190: 0 | H190: 0,36 Wh/m³
E191: 140 m³/h | F191: 0.9 | G191: 0 | H191: 0,36 Wh/m³
E192: 162 m³/h | F192: 0.9 | G192: 0 | H192: 0,36 Wh/m³
A193: Mitsubishi Electric | B193: Lossnay VL-220CZGV-E | E193: 69 m³/h | F193: 0.81 | G193: 0 | H193: 0,23 Wh/m³ | I193: BRE | J193: P100889-1000 | K193: EN 308:1997
E194: 137 m³/h | F194: 0.8 | G194: 0 | H194: 0,25 Wh/m³
E195: 206 m³/h | F195: 0.78 | G195: 0 | H195: 0,40 Wh/m³
E196: 274 m³/h | F196: 0.76 | G196: 0 | H196: 0,35 Wh/m³
B197: Lossnay VL-100EU5-E | E197: 55 m³/h | F197: 0.82 | G197: 0 | H197: 0,24 Wh/m³ | I197: JQA | J197: 52-40142 | K197: JIS B8628
E198: 100 m³/h | F198: 0.74 | G198: 0 | H198: 0,28 Wh/m³
A199: Paul Wärmerückgewinnung | B199: Novus 450 | C199: 450 m3/h | D199: 315 m3/h | E199: 184 m³/h | F199: 0.9 | G199: 0 | H199: 0,26 Wh/m³ | I199: PHI | J199: PHI N°00030 | K199: Regolamento PHI
E200: 285 m³/h | F200: 0.89 | G200: 0 | H200: 0,29 Wh/m³
... 156 more rows

Sheet OLD_single room (hidden)
A1: Produttore / Rivenditore | B1: Prodotto | C1: Tipo | D1: Portata massima | E1: Portata nominale | F1: Portata test | G1: Efficienza del recuperatore | I1: Assorbimento elettrico totale | J1: Istituto di Prova | K1: rapporto di prova | L1: Norme di prova e/o regolamento
A2: Hersteller / Reseller | B2: Produkt | C2: Typ | D2: max. Luftvolumenstrom | E2: Bezugs-Luftvolumenstrom | F2: Prüf-Luftvolumenstrom | G2: Rückgewinnungsgrad | I2: Stromaufnaheme | J2: Prüfinstitut | K2: Prüfbericht | L2: Prüfnorm u/o Richtlinie
D3: qv,max | E3: qv,nom | F3: qv,test | G3: ɳθ,su | H3: ɳx,su | I3: SFP | K3: Nr.
A4: Glen Dimplex | B4: DL 50 | C4: bidirezionale, flusso continuo - bidirektional, kontinuierlich | D4: 55 m3/h | E4: - | F4: 14 m³/h | G4: 0.75 | H4: - | I4: 0.29 | J4: IGE | K4: PL.12.WLG.111D | L4: Regolamento DIBt N°20
F5: 30 m³/h | G5: 0.79 | H5: - | I5: 0.42
F6: 36 m³/h | G6: 0.81 | H6: - | I6: 0.49
F7: 46 m³/h | G7: 0.82 | H7: - | I7: 0.56
A8: Helios | B8: KWL EC 60 Pro | C8: bidirezionale, flusso continuo - bidirektional, kontinuierlich | D8: 60 m3/h | E8: - | F8: 17 m³/h | G8: 0.71 | H8: - | I8: 0.2 | J8: TZWL | K8: M.93.07.099.CB.0421 | L8: Regolamento DIBt LÜ-A Nr. 20
A9: (Farko) | F9: 30 m³/h | G9: 0.71 | H9: - | I9: 0.14
F10: 45 m³/h | G10: 0.71 | H10: - | I10: 0.13
F11: 60 m³/h | G11: 0.71 | H11: - | I11: 0.12
A12: Inventer | B12: Twin | C12: bidirezionale, flusso continuo - bidirektional, kontinuierlich | D12: 40 m3/h | E12: - | F12: 19 m³/h | G12: 0.84 | H12: - | I12: 0.17 | J12: IGE | K12: PL.07.WLG.38 | L12: Regolamento DIBt LÜ-A Nr. 20
F13: 30 m³/h | G13: 0.76 | H13: - | I13: 0.19
A14: Limot | B14: Limodor Air Vital | C14: bidirezionale, flusso continuo - bidirektional, kontinuierlich | D14: 70 m3/h | E14: 49 m3/h | F14: 25 m³/h | G14: 0.73 | H14: - | I14: 0.63 | J14: IGE | K14: PL.09.WLG.59_LIM | L14: Regolamento DIBt LÜ-A Nr. 20
F15: 29 m³/h | G15: 0.66 | H15: - | I15: 0.57
F16: 37 m³/h | G16: 0.59 | H16: - | I16: 0.55
A17: Lunos | B17: Lunos – ego | C17: bidirezionale, flusso continuo - bidirektional, kontinuierlich | D17: 20 m3/h | E17: 14 m3/h | F17: 5 m³/h | G17: 0.87 | H17: - | I17: 0.59 | J17: IGE | K17: PL.13.WLG.180 | L17: Regolamento DIBt LÜ-A Nr. 20
A18: (Recuterm) | F18: 10 m³/h | G18: 0.8 | H18: - | I18: 0.38
F19: 15 m³/h | G19: 0.77 | H19: - | I19: 0.31
F20: 20 m³/h | G20: 0.77 | H20: - | I20: 0.32
A21: Roos | B21: WRG | C21: bidirezionale, flusso continuo - bidirektional, kontinuierlich | D21: - | E21: - | F21: 15 m³/h | G21: 0.81 | H21: - | I21: 0.43 | J21: FTZ | L21: DIN EN 13141-8
A22: (TOP AIR) | F22: 25 m³/h | G22: 0.78 | H22: - | I22: 0.38
F23: 40 m³/h | G23: 0.74 | H23: - | I23: 0.35
F24: 55 m³/h | G24: 0.74 | H24: - | I24: 0.55
B25: WRG mini | C25: bidirezionale, flusso continuo - bidirektional, kontinuierlich | D25: - | E25: - | F25: 50 m³/h | G25: 0.79 | H25: - | I25: 0.14 | J25: FTZ | L25: DIN EN 13141-8
F26: 66 m³/h | G26: 0.76 | H26: - | I26: 0.23
B27: Airfox | C27: bidirezionale, flusso continuo - bidirektional, kontinuierlich | D27: 35 m3/h | E27: 35 m3/h | F27: 7 m³/h | G27: 0.88 | H27: - | I27: 0.53 | J27: IGE | K27: PL.14 WLG 209 A | L27: Regolamento DIBt N°20
F28: 17 m³/h | G28: 0.83 | H28: - | I28: 0.31
F29: 38 m³/h | G29: 0.78 | H29: - | I29: 0.38
A30: Südtirol Fenster | B30: ISO-bloc® air | C30: bidirezionale, flusso continuo - bidirektional, kontinuierlich | D30: - | E30: - | F30: 10 m³/h | G30: 0.88 | H30: - | I30: 0.26 | J30: TÜV SÜD | K30: WRG431 | L30: DIN EN 13141-8:2014
F31: 26 m³/h | G31: 0.78 | H31: - | I31: 0.3
F32: 37 m³/h | G32: 0.73 | H32: - | I32: 0.44
A33: Ventilair Group Nederland | B33: GLT Multi EC | C33: bidirezionale, flusso continuo - bidirektional, kontinuierlich | D33: - | E33: - | F33: 33 m³/h | G33: 0.68 | H33: - | I33: 0.18 | J33: TZWL | K33: M.87.06.163.AA. | L33: Regolamento DIBt
F34: 40 m³/h | G34: 0.67 | H34: - | I34: 0.18
F35: 60 m³/h | G35: 0.6 | H35: - | I35: 0.16
A36: Zehnder | B36: PremiVent | C36: bidirezionale, flusso continuo - bidirektional, kontinuierlich | D36: - | E36: - | F36: 15 m³/h | G36: 0.89 | H36: 0.72 | I36: 0.33 | J36: FTZ | L36: DIN EN 13141-8:2014
F37: 30 m³/h | G37: 0.8 | H37: 0.59 | I37: 0.25
F38: 40 m³/h | G38: 0.75 | H38: 0.52 | I38: 0.3
B39: ComfoAir 70 | C39: bidirezionale, flusso continuo - bidirektional, kontinuierlich | D39: 65m3/h | E39: 40m3/h | F39: 40m3/h | G39: 0.85 | H39: 0.64 | I39: 0.24 | J39: PHI | K39: 0826VS03 | L39: Regolamento PHI
A40: ZSA Vertriebs GmbH | B40: Variovent duo | C40: bidirezionale, flusso continuo - bidirektional, kontinuierlich | D40: - | E40: - | F40: 16 m³/h | G40: 0.81 | H40: - | I40: 0.31 | J40: IGE | K40: PL.13.WLG.158 | L40: Regolamento DIBt N°20
F41: 21 m³/h | G41: 0.81 | H41: - | I41: 0.26
F42: 26 m³/h | G42: 0.73 | H42: - | I42: 0.27
F43: 29 m³/h | G43: 0.71 | H43: - | I43: 0.33
A44: ZSA Vertriebs GmbH | B44: Variovent duo Smart | C44: bidirezionale, flusso continuo - bidirektional, kontinuierlich | D44: - | E44: - | F44: 16 m³/h | G44: 0.81 | H44: - | I44: 0.31 | J44: IGE | K44: PL.13.WLG.158 | L44: Regolamento DIBt N°20
F45: 21 m³/h | G45: 0.81 | H45: - | I45: 0.26
F46: 26 m³/h | G46: 0.73 | H46: - | I46: 0.27
F47: 29 m³/h | G47: 0.71 | H47: - | I47: 0.33
A48: Aerauliqa | B48: QUANTUM AX | C48: bidirezionale, flusso alternato - bidirektional, diskontinuierlich | D48: 65 m3/h | E48: 52 m3/h | F48: 29 m³/h | G48: 0 | H48: - | I48: =0.033*2 -> 0.066 | J48: BRE | K48: 293904 | L48: SAP – EN 13141-7
B49: (min. 2 apparecchi/geräte) | F49: 47 m³/h | G49: 0 | H49: - | I49: =0.036*2 -> 0.072
A50: Airplast | B50: A60 Basic – Duo - Wireless (min. 2 apparecchi/geräte) | C50: bidirezionale, flusso alternato - bidirektional, diskontinuierlich | D50: 60 m3/h | E50: 45 m3/h | F50: 12 m³/h | G50: 0.19 | H50: - | I50: =0.95 *2 -> 1.9 | J50: TÜV SÜD | K50: WRG451 | L50: DIN EN 13141-8:2014
A51: Blauberg Ventilatoren | B51: Vento Expert A50-1 Pro | C51: bidirezionale, flusso alternato - bidirektional, diskontinuierlich | D51: 25 m3/h | E51: 15 m3/h | F51: 15 m³/h | G51: 0.9 | H51: - | I51: =0.6*2 -> 1.2 | J51: IGE | K51: PL.15.WLG.236 | L51: Regolamento DIBt LÜ-A Nr. 20
B52: (min. 2 apparecchi/geräte) | F52: 29 m³/h | G52: 0.81 | H52: - | I52: =0.32*2 -> 0.64
F53: 40 m³/h | G53: 0.74 | H53: - | I53: =0.26*2 -> 0.52
F54: 50 m³/h | G54: 0.7 | H54: - | I54: =0.24*2 -> 0.48
A55: Helios | B55: KWL EC 45 | C55: bidirezionale, flusso alternato - bidirektional, diskontinuierlich | D55: 45 m3/h | E55: - | F55: 14 m³/h | G55: 0.87 | H55: - | I55: =0.14 *2 -> 0.28 | J55: IGE | K55: PL.15.WLG.221 | L55: Regolamento DIBt LÜ-A Nr. 20
A56: (Farko) | B56: (min. 2 apparecchi/geräte) | F56: 24 m³/h | G56: 0.83 | H56: - | I56: =0.11 *2 -> 0.22
F57: 37 m³/h | G57: 0.77 | H57: - | I57: =0.11 *2 -> 0.22
A58: Hitec | B58: Air 50 (min. 2 apparecchi/geräte) | C58: bidirezionale, flusso alternato - bidirektional, diskontinuierlich | D58: 38 m3/h | E58: 38 m3/h | F58: 38 m³/h | G58: 0.73 | H58: - | I58: =0.18 *2 -> 0.36 | J58: IMQ CLIMA | K58: 16018MAL | L58: EN13141-8:2014
A59: Inventer | B59: IV25 | C59: bidirezionale, flusso alternato - bidirektional, diskontinuierlich | D59: 53 m3/h | E59: - | F59: 56 m³/h | G59: 0.74 | H59: - | I59: =0.13 *2 -> 0.26 | J59: IGE | K59: PL.13.WLG.77 | L59: Regolamento DIBt LÜ-A Nr. 20
B60: (min. 2 apparecchi/geräte) | F60: 80 m³/h | G60: 0.69 | H60: - | I60: =0.14 *2 -> 0.28
B61: IV14 | C61: bidirezionale, flusso alternato - bidirektional, diskontinuierlich | D61: 27 m3/h | E61: - | F61: 32 m³/h | G61: 0.86 | H61: - | I61: =0.11 *2 -> 0.22 | J61: TÜV Süd | K61: Z-51.3-156 | L61: Regolamento DIBt LÜ-A Nr. 20
B62: (min. 2 apparecchi/geräte) | F62: 48 m³/h | G62: 0.7 | H62: - | I62: =0.11 *2 -> 0.22
B63: IV12 Smart | C63: bidirezionale, flusso alternato - bidirektional, diskontinuierlich | D63: 28 m3/h | E63: - | F63: 15 m³/h | G63: 0.77 | H63: - | I63: =0.13 *2 -> 0.26 | J63: TÜV Süd | K63: WRG 375 DIBt | L63: Regolamento DIBt LÜ-A Nr. 22
B64: (min. 2 apparecchi/geräte) | F64: 21 m³/h | G64: 0.77 | H64: - | I64: =0.12 *2 -> 0.24
F65: 33 m³/h | G65: 0.73 | H65: - | I65: =0.1 *2 -> 0.2
F66: 46 m³/h | G66: 0.7 | H66: - | I66: =0.11 *2 -> 0.22
A67: Lindab | B67: Penny 2 (min. 2 apparecchi/geräte) | C67: bidirezionale, flusso alternato - bidirektional, diskontinuierlich | D67: 38 m3/h | E67: 38 m3/h | F67: 38 m³/h | G67: 0.73 | H67: - | I67: =0.18 *2 -> 0.36 | J67: IMQ CLIMA | K67: 16018MAL | L67: EN13141-8:2014
A68: Lunos | B68: Lunos – e2 | C68: bidirezionale, flusso alternato - bidirektional, diskontinuierlich | D68: 38 m3/h | E68: - | F68: 18 m³/h | G68: 0.94 | H68: - | I68: =0.35*2 -> 0.7 | J68: IGE | K68: PL.11.WLG.91-C | L68: Regolamento DIBt LÜ-A Nr. 20
A69: (Recuterm) | B69: (min. 2 apparecchi/geräte) | F69: 31 m³/h | G69: 0.85 | H69: - | I69: =0.3 *2 -> 0.6
F70: 38 m³/h | G70: 0.84 | H70: - | I70: =0.3 *2 -> 0.6
A71: Maico | B71: PushPull PP 60 K | C71: bidirezionale, flusso alternato - bidirektional, diskontinuierlich | D71: 50 m3/h | E71: - | F71: 20 m³/h | G71: 0.79 | H71: - | I71: =0.22*2 -> 0.44 | J71: IGE | K71: PL.15.WLG.220 | L71: Regolamento DIBt LÜ-A Nr. 20
A72: (Imperial) | B72: (min. 2 apparecchi/geräte) | F72: 30 m³/h | G72: 0.73 | H72: - | I72: =0.2*2 -> 0.4
A73: RDZ | B73: WHR 50 | C73: bidirezionale, flusso alternato - bidirektional, diskontinuierlich | D73: 54 m3/h | E73: - | F73: 21 m³/h | G73: 0.87 | H73: - | I73: =0.46 *2 -> 0.92 | J73: IGE | K73: PL.13.WGL.181 | L73: Regolamento DIBt LÜ-A Nr. 20
B74: (min. 2 apparecchi/geräte) | F74: 32 m³/h | G74: 0.8 | H74: - | I74: =0.34 *2 -> 0.68
F75: 50 m³/h | G75: 0.73 | H75: - | I75: =0.27 *2 -> 0.54
A76: SEVentilation | B76: SEVi 200 | C76: bidirezionale, flusso alternato - bidirektional, diskontinuierlich | D76: 44 m3/h | E76: 30 m3/h | F76: 15 m³/h | G76: 0.8 | H76: - | I76: =0.4 *2 -> 0.8 | J76: TUV | K76: Z-51.3-260 | L76: Regolamento DIBt LÜ-A Nr. 20
B77: (min. 2 apparecchi/geräte) | F77: 27 m³/h | G77: 0.78 | H77: - | I77: =0.27 *2 -> 0.54
F78: 40 m³/h | G78: 0.75 | H78: - | I78: =0.21*2 -> 0.42
F79: 48 m³/h | G79: 0.69 | H79: - | I79: =0.23 *2 -> 0.46
A80: Suedwind | B80: Ambientika (min. 2 apparecchi/geräte) | C80: bidirezionale, flusso alternato - bidirektional, diskontinuierlich | D80: 60 m3/h | E80: 45 m3/h | F80: 12 m³/h | G80: 0.19 | H80: - | I80: =0.95 *2 -> 1.9 | J80: TÜV SÜD | K80: WRG451 | L80: DIN EN 13141-8:2014
A81: Utek | B81: Aura 2 (min. 2 apparecchi/geräte) | C81: bidirezionale, flusso alternato - bidirektional, diskontinuierlich | D81: 38 m3/h | E81: 38 m3/h | F81: 38 m³/h | G81: 0.73 | H81: - | I81: =0.18 *2 -> 0.36 | J81: IMQ CLIMA | K81: 16018MAL | L81: EN13141-8:2014
A82: Ventilair Group Nederland | B82: GLT Fox Up | C82: bidirezionale, flusso alternato - bidirektional, diskontinuierlich | D82: 35 m3/h | E82: 24m3/h | F82: 13 m³/h | G82: 0.68 | H82: 0.6 | I82: =0.13 *2 -> 0.26 | J82: TZWL | K82: M.87.06.164.AA | L82: Regolamento DIBt
B83: (min. 2 apparecchi/geräte) | F83: 23 m³/h | G83: 0.65 | H83: 0.69 | I83: =0.14 *2 -> 0.28
F84: 35 m³/h | G84: 0.62 | H84: 0.5 | I84: =0.16 *2 -> 0.32
A85: Ventilation systems | B85: TWINFRESH COMFO RA1-50 | C85: bidirezionale, flusso alternato - bidirektional, diskontinuierlich | D85: 54 m3/h | E85: - | F85: 21 m³/h | G85: 0.87 | H85: - | I85: =0.46 *2 -> 0.92 | J85: IGE | K85: PL.13.WLG.181 | L85: Regolamento DIBt LÜ-A Nr. 20
A86: (Airplast) | B86: (min. 2 apparecchi/geräte) | F86: 32 m³/h | G86: 0.8 | H86: - | I86: =0.34 *2 -> 0.68
F87: 50 m³/h | G87: 0.73 | H87: - | I87: =0.27 *2 -> 0.54
A88: Ventomaxx | B88: Z-WRG Plus / V-WRG Plus | C88: bidirezionale, flusso alternato - bidirektional, diskontinuierlich | D88: - | E88: - | F88: 21 m³/h | G88: 0.88 | H88: - | I88: =0.26 *2 -> 0.52 | J88: IGE | K88: PL.10.WLG.76A | L88: Regolamento DIBt LÜ-A Nr. 20
A89: (Loex) | B89: (min. 2 apparecchi/geräte) | F89: 33 m³/h | G89: 0.78 | H89: - | I89: =0.25 *2 -> 0.5
B90: RONDO IQ (min. 2 apparecchi/geräte) | C90: bidirezionale, flusso alternato - bidirektional, diskontinuierlich | D90: 43 m3/h | E90: 27 | F90: 20 | G90: 0.51 | H90: - | I90: =0.22*2 -> 0.44 | J90: TÜV-Süd | K90: WRG 503 | L90: DIN EN 13141-8:2014
B91: SMART RONDO (min. 2 apparecchi/geräte) | C91: bidirezionale, flusso alternato - bidirektional, diskontinuierlich | D91: 43 m3/h | E91: 27 | F91: 21 | G91: 0.43 | H91: - | I91: =0.27*2 -> 0.54 | J91: TÜV-Süd | K91: WRG 503 | L91: DIN EN 13141-8:2014
B92: RONDO PLUS (min. 2 apparecchi/geräte) | C92: bidirezionale, flusso alternato - bidirektional, diskontinuierlich | D92: 43 m3/h | E92: 27 | F92: 14 | G92: 0.43 | H92: - | I92: =0.27*2 -> 0.54 | J92: TÜV-Süd | K92: WRG 503 | L92: DIN EN 13141-8:2014
A93: Zefiro | B93: Zefiro 160 (min. 2 apparecchi/geräte) | C93: bidirezionale, flusso alternato - bidirektional, diskontinuierlich | D93: 50 m3/h | E93: 38 m3/h | F93: 38 m³/h | G93: 0.74 | H93: - | I93: =0.15*2 -> 0.3 | J93: IMQ Clima | K93: 16018MAL | L93: EN 13141-8:2014

Sheet menü (hidden)
B3: category Heat exchanger
B4: Typ 1 | C4: Typ 2 | D4: Typ 3
B5: -- | C5: ---- | D5: ----
B6: HRC1 - recuperative Heat exchangers
B7: HRC1a - recuperative (sensible thermal energy) | C7: funzionamento alternato Umschaltbetrieb | D7: air to air heat pump
B8: HRC1b - recuperative (total thermal energy) | C8: bidirezionale, flusso continuo - bidirektional, kontinuierlich | D8: heat exchanger + air to air heat pump
B9: HRC3 - regenerative Heat exchangers
B10: HRC3a - regenerative (moving masses)
B11: HRC3b - regenerative (alternating flow dir)

Sheet norme (hidden)
A1: DIN EN 13141-1: 2019-04 | B1: Lüftung von Gebäuden - Leistungsprüfungen von Bauteilen/Produkten für die Lüftung von Wohnungen - Teil 1: Außenwand- und Überströmluftdurchlässe; Deutsche Fassung EN 13141-1:2019
B2: Die EN 13141-1 legt Laborverfahren für die Prüfung von Außenwand- und Überströmluftdurchlässen fest, die unter Druckdifferenzen betrieben werden. Sie gilt für alle Einrichtungen, die zwischen zwei Bereichen (zwischen zwei Räumen oder zwischen einem Raum und dem Freien) eingebaut sind, wie Luftdurchlässen mit nicht verstellbarer(n) Öffnung(en), mit manuell einstellbarer(n) Öffnung(en); oder mit druckdifferenzgeregelter(n) Öffnung(en). Sie beschreibt Prüfungen, die für die Bestimmung folgender Größen vorgesehen sind: Volumenstrom/Druck, äquivalente Fläche, Gegenstromfähigkeit, Luftdichtheit in geschlossenem Zustand, freie Fläche, Luftverteilung im Aufenthaltsbereich, Schalldämmung und Schlagregendichtheit. Dieses Dokument gilt nicht für die Bewertung von Luftfilterung, Kondensationsgefahr und Erzeugung von Geräuschen. Gegenüber der Vorgängerausgabe DIN EN 13141-1:2004-05 wurden folgende Änderungen vorgenommen: a) Begriffe, Symbole und Einheiten wurden aktualisiert; b) in 5.1.2.1 wurde der Prüfaufbau vervollständigt; c) in 5.1.2.2 wurden die Messunsicherheit geändert und die Klammern gelöscht; d) in 5.1.3 wurde das Prüfverfahren aktualisiert; e) in 5.1.4 wurde die Auswertung der Ergebnisse aktualisiert; f) in 5.1.5 sind nun eine bemaßte Zeichnung des Luftdurchlasses sowie die Angabe der Öffnung und der Lage auf der Platte während der Prüfung im Prüfbericht erforderlich; g) in 5.5.3 wurden die Bereichsprüfhöhen geringfügig aktualisiert; h) in Abschnitt 6 wurde zur Leistungsprüfung der Schalldämmung die Anforderung hinzugefügt, dass die Prüfung in der Plattenkonfiguration nach 5.1.2.1 durchzuführen ist; i) Anhang B (informativ) mit typischen Beispielen wurde hinzugefügt. Dieses Dokument (EN 13141-1:2019) wurde vom Technischen Komitee CEN/TC 156 "Lüftung von Gebäuden" erarbeitet, dessen Sekretariat von BSI (Vereinigtes Königreich) gehalten wird. Das zuständige deutsche Normungsgremium ist der Arbeitsausschuss NA 041-02-51 AA "Lüftung von Wohnungen (SpA CEN/TC 156/WG 2 und CEN/TC 156/WG 16)" im DIN-Normenausschuss Heiz- und Raumlufttechnik sowie deren Sicherheit (NHRS).
A3: DIN EN 13141-2: 2010-12 | B3: Lüftung von Gebäuden - Leistungsprüfung von Bauteilen/Produkten für die Lüftung von Wohnungen - Teil 2: Abluft- und Zuluftdurchlässe; Deutsche Fassung EN 13141-2:2010 | C3: Die DIN EN 13141-2 ist Teil einer Normenreihe mit Leistungsprüfungen von Bauteilen/Produkten für die Lüftung von Wohnungen. Der Teil 2 legt Laborverfahren für die Prüfung von Abluft- und Zuluftdurchlässen fest, die unter Druckdifferenzen betrieben werden. Die Norm gilt für Luftdurchlässe der folgenden Typen, die in Anlagen für die maschinelle und natürliche Lüftung von Wohnungen angewendet werden: - Luftdurchlässe mit manuell einstellbarer Öffnung; oder - Luftdurchlässe mit nicht verstellbarer Öffnung; oder - druckdifferenzgeregelte Luftdurchlässe. Es werden Prüfungen beschrieben, die für die Bestimmung folgender aerodynamischer beziehungsweise akustischer Kenngrößen vorgesehen sind: - Volumenstrom/Druck; - Luftverteilungskenngrößen (für Zuluftdurchlässe); - Geräuscherzeugung durch Anlagenbauteile; - Einfügungsdämpfung von Anlagenbauteilen; - Schalldämmung. Das Dokument ersetzt EN 13141-2:2004. Gegenüber der Vorgängerausgabe wurde durch unterschiedliche Prüfaufbaue den unterschiedlichen Einbaubedingungen von Abluft- und Zuluftdurchlässen Rechnung getragen. Die Leistungsprüfung akustischer Kenngrößen wurde überarbeitet. Die bisherigen Empfehlungen zu dieser Prüfung wurden in Anforderungen geändert. Die Norm wurde im Technischen Komitee CEN/TC 156 "Lüftung von Gebäuden" (Sekretariat: BSI, Vereinigtes Königreich) erarbeitet. Das zuständige deutsche Gremium ist der Arbeitsausschuss NA 041-02-51 AA "Lüftung von Wohnungen" im Normenausschuss Heiz- und Raumlufttechnik (NHRS) im DIN Deutsches Institut für Normung e. V.
A4: DIN EN 13141-3: 2017-09 | B4: Lüftung von Gebäuden - Leistungsprüfungen von Bauteilen/Produkten für die Lüftung von Wohnungen - Teil 3: Dunstabzugshauben für den Hausgebrauch ohne Ventilator; Deutsche Fassung EN 13141-3:2017 | C4: Die Normen der Reihe DIN EN 13141 beinhalten Leistungsprüfungen von Bauteilen/Produkten für die Lüftung von Wohnungen. Die Neuausgabe der DIN EN 13141-3 beinhaltet Verfahren zur Messung der Hauptleistungskenngrößen von Dunstabzugshauben für Wohnungen. Die Neuausgabe gilt für Abluft-Dunstabzugshauben ohne Ventilator. Für Abluft-Dunstabzugshauben mit Ventilator siehe EN 61591. Folgendes legt die Norm nicht fest: - Werte für Leistungskenngrößen; - Sicherheitsanforderungen in Zusammenhang mit der Verwendung von Methylethylketon (MEK). Folgende Änderungen gegenüber DIN EN 13141-3:2004 wurden vorgenommen: - Einschränkung des Anwendungsbereichs, um Abluft-Dunstabzugshauben mit Ventilator auszuschließen, die bereits in der durch das IEC/TC 59 "Performance of household and similar electrical appliances" erarbeiteten Norm EN 61591 behandelt werden; - Hinzufügen eines spezifischen Abschnitts bezüglich der Leistungsprüfung der Geruchsbeseitigung (siehe Abschnitt 7) anstatt der Verweisung auf EN 61591. Dieses Dokument (EN 13141-3:2017) wurde im Technischen Komitee CEN/TC 156 "Lüftung von Gebäuden" (Sekretariat: BSI, Vereinigtes Königreich) erarbeitet. Das zuständige deutsche Gremium ist der Arbeitsausschuss NA 041-02-51 AA "Lüftung von Wohnungen" im DIN-Normenausschuss Heiz- und Raumlufttechnik sowie deren Sicherheit (NHRS).
A5: DIN EN 13141-4: 2018-09 - Entwurf | B5: Lüftung von Gebäuden - Leistungsprüfungen von Bauteilen/Produkten für die Lüftung von Wohnungen - Teil 4: Aerodynamische, elektrische und akustische Leistung von unidirektionalen Lüftungsgeräten; Deutsche und Englische Fassung prEN 13141-4:2018
B6: Der Entwurf zur Überarbeitung der Norm EN 13141-4 enthält die Verfahren zur Leistungsprüfung von in Lüftungsanlagen von Wohnungen verwendeten Komponenten, mit denen die Leistungskenngrößen nach der Identifizierung in EN 13142 festgelegt werden sollen. Dieses Dokument enthält zahlreiche Verweisungen auf andere Europäische und Internationale Normen, die sich insbesondere mit anderen Merkmalen als den aerodynamischen befassen, wie beispielsweise den akustischen Merkmalen. In den meisten Fällen werden für die spezifische Nutzung in Lüftungsanlagen von Wohngebäuden einige zusätzliche Prüfungen oder einige zusätzliche Bedienungen angegeben. Die geplante Europäische Norm soll für folgende Anwendungen verwendet werden können: - Laborprüfungen; - Beglaubigungszwecke. Dieses Dokument beinhaltet Verfahren zur Leistungsprüfung von für die Lüftung von Wohnungen eingesetzten unidirektionalen Lüftungsgeräten im Hinblick auf Aerodynamik, Akustik und elektrische Leistung. Dieses Dokument ist auf Lüftungsgeräte anwendbar, - die ohne Luftleitung an einer Wand oder in einem Fenster eingebaut sind (Kategorie A); - die einer Luftleitung vorgeschaltet sind (Kategorie B); - die im nachgeschalteten Teil einer Luftleitung eingebaut sind (Kategorie C); - die in einer Luftleitung eingebaut sind oder denen eine Luftleitung vorgeschaltet und nachgeschaltet ist (Kategorie D); - die einen oder mehrere Einström-/Ausströmöffnungen aufweisen; - die in einem System mit einer Wärmepumpe für erwärmtes Trinkwasser beziehungsweise für Kühl- oder Heizwasser eingebaut sind; - die für Zuluft oder Fortluft verwendet werden können. Dieses Dokument gilt nicht für: - ventilatorgestützte Hauben, die nach den Angaben in EN 13141-5 geprüft werden; - mechanische Zuluft- und Fortlufteinheiten, die nach den Angaben in EN 13141-7 oder EN 13141-8 geprüft werden.
A7: DIN EN 13141-5: 2019-06 - Entwurf | B7: Lüftung von Gebäuden - Leistungsprüfung von Bauteilen/Produkten für die Lüftung von Wohnungen - Teil 5: Hauben und Dach-Fortluftdurchlässe; Deutsche und Englische Fassung prEN 13141-5:2019 | C7: Dieser Norm-Entwurf beschreibt ein Verfahren zur Messung der aerodynamischen und akustischen Kenngrößen von Hauben und Dach-Fortluftdurchlässen, die in Anlagen für die freie und maschinelle Lüftung verwendet werden. Er gilt nur für jene Hauben und Dach-Fortluftdurchlässe, die auf Luftleitungen eingebaut sind, die über die Dachoberfläche hinausragen. Dieses Dokument (prEN 13141-5:2019) wurde im Technischen Komitee CEN/TC 156 "Lüftung von Gebäuden" (Sekretariat: BSI, Vereinigtes Königreich) erarbeitet. Aufgrund der wesentlichen Änderungen nach der Entwurfsumfrage zu prEN 13141-5:2017 hatte das zuständige europäische Gremium die Herausgabe eines zweiten Entwurfs beschlossen. Das zuständige deutsche Gremium ist der Arbeitsausschuss NA 041-02-51 AA "Lüftung von Wohnungen (SpA CEN/TC 156/WG 2 und CEN/TC 156/WG 16)" im DIN-Normenausschuss Heiz- und Raumlufttechnik sowie deren Sicherheit (NHRS).
A8: DIN EN 13141-6: 2015-02 | B8: Lüftung von Gebäuden - Leistungsprüfung von Bauteilen/Produkten für die Lüftung von Wohnungen - Teil 6: Baueinheiten für Abluftanlagen für eine einzelne Wohnung; Deutsche Fassung EN 13141-6:2014 | C8: Die Normenreihe EN 13141 beschreibt Leistungsprüfung von Bauteilen/Produkten für die Lüftung von Wohnungen. Die Neuausgabe der EN 13141-6 legt Prüfverfahren für Baueinheiten von Lüftungsanlagen fest und trägt dazu bei, die Notwendigkeit einer separaten Prüfung jedes einzelnen Bauteils zu vermeiden. Die Norm beinhaltet Laborverfahren für die Messung der aerodynamischen und akustischen Leistungskenngrößen sowie des Energieverbrauchs von zusammengesetzten Baueinheiten für Abluftanlagen für eine einzelne Wohnung. Wenn ein Bauteil der Baueinheit nicht direkt mit den anderen Bauteilen verbunden ist (zum Beispiel Außenwand- oder Überströmluftdurchlässe), wird davon ausgegangen, dass dieses Bauteil nach dem dafür gültigen Prüfverfahren geprüft wurde. Zweck der Norm ist es, Kenngrößen für eine Anlagenbaueinheit zu liefern, die bei Prüfungen unter den ungünstigsten Bedingungen bestimmt wurden. Es wird davon ausgegangen, dass bessere Werte erreicht werden, wenn die Anlagenbaueinheit nach den Herstelleranweisungen und innerhalb der in dieser Norm angegebenen Grenzen der Prüfbedingungen vor Ort eingebaut wurde. Die Leistungskenngrößen der Bauteile/Produkte für die Lüftung von Wohnungen werden in EN 13142 angegeben. Die Neuausgabe ersetzt DIN EN 13141-6:2004. Gegenüber DIN EN 13141-6:2004 wurden folgende Änderungen vorgenommen: a) in Abschnitt 3 wurden folgende Begriffe aufgenommen: größter und kleinster Luftvolumenstrom (qvmax und qvmin), bedarfsgeregelte Lüftung (DCV), verstärkter Luftvolumenstrom (qvboost), kurze Luftleitung und lange Luftleitung sowie Bezugsanordnung (für die Berechnung der Energieeffizienz); b) in 4.2.2 wurde eine Unterscheidung der Anschlussluftleitungen zwischen dem Dach-/Wand-Fortluftdurchlass und der Ventilatoreinheit daraufhin aufgenommen, ob sich die Ventilatorausströmöffnung oben auf oder an einer Seite des kastenförmigen Ventilators befindet; c) Modifizierung von Bild 6, das die Arten der langen und langen verzweigten Luftleitungen beschreibt (es enthält nun eine Erläuterung zum Umgang mit langen verzweigten Luftleitungen mit mehr als 3 Stutzen); d) Modifizierung von Tabelle 1 zur Darstellung der aerodynamischen Kenngrößen; e) als Abschnitt 5 die Hinzufügung eines Verfahrens zur Messung der äußeren Undichtheit; f) Hinzufügung der Tabelle 2, die eine Klassifizierung der äußeren Undichtheit enthält; g) in Abschnitt 6 die Spezifikation der Prüfbedingungen für die Messung der elektrischen Leistung; h) in Abschnitt 7 die Hinzufügung eines Absatzes zur Definition der Prüfbedingungen und der Berechnung der Energieeffizienz; i) Erstellung der Tabelle 3, die die Ergebnisse in Bezug auf die Leistungsaufnahme darstellt; j) in Abschnitt 8 die Spezifikation der Bedingungen der akustischen Prüfung; k) in A.1 die Modifizierung und Erläuterung von Bild A.1, das ein Beispiel des Ausgleichsaufbaus für das Luftvolumenstrom-Messgerät darstellt. Dieses Dokument (EN 13141-6:2014) wurde im Technischen Komitee CEN/TC 156 "Lüftung von Gebäuden" erarbeitet. Das zuständige deutsche Gremium ist der Arbeitsausschuss NA 041-02-51 AA "Lüftung von Wohnungen" im DIN-Normenausschuss Heiz- und Raumlufttechnik (NHRS).
A9: DIN EN 13141-7: 2018-09 - Entwurf | B9: Lüftung von Gebäuden - Leistungsprüfungen von Bauteilen/Produkten für die Lüftung von Wohnungen - Teil 7: Leistungsprüfung von mechanischen Zuluft- und Ablufteinheiten (einschließlich Wärmerückgewinnung); Deutsche und Englische Fassung prEN 13141-7:2018
B10: Der Entwurf für die Neuausgabe der EN 13141-7 gibt die Verfahren zur Leistungsprüfung von in Lüftungsanlagen von Wohnungen verwendeten Komponenten an, mit denen die Leistungskenngrößen nach der Identifizierung in EN 13142 festgelegt werden. Dieses Dokument enthält keine Angaben über Leitungsnetze und Armaturen, die von anderen Europäischen Normen abgedeckt sind. Dieses Dokument kann für folgende Anwendungen verwendet werden: - bei Laborprüfungen, - zu Nachweiszwecken. Die geplante Norm soll die Laborprüfverfahren und die Anforderungen an die Prüfung der aerodynamischen, thermischen und akustischen sowie der elektrischen Leistung von mechanischen Zuluft- und Fortluftgeräten zur Verwendung in Wohneinheiten festlegen. Sie soll auf Geräte anwendbar sein, die in einem oder mehreren Gehäuse(n) mindestens Folgendes umfassen: - Ventilatoren für mechanische Zuluft- und Fortlufteinheiten; - Luftfilter; - Luft-Luft-Wärmeübertrager und/oder Luft/Luft-Wärmepumpen für die Wärmerückgewinnung; - Steuer und Regeleinrichtungen. Eine derartige Einrichtung kann in mehr als einer Baugruppe geliefert werden, wobei die einzelnen Baugruppen dafür ausgelegt sind, zusammen verwendet zu werden. Die verschiedenen möglichen Anordnungen der Wärmeübertrager und/oder Wärmepumpen für die Wärmerückgewinnung sind in Anhang A beschrieben. Diese geplante Norm soll keine Geräte behandeln, die nicht an Luftleitungen angeschlossen sind. Dieses Dokument behandelt keine Lüftungsanlagen, die auch für die Warmwasser-Raumheizung und die Warmwasserbereitung eingesetzt werden dürfen sowie keine Geräte, die Kompressionswärmepumpen mit Antrieb durch Verbrennungsmotor und Absorptionswärmepumpen umfassen.
A11: DIN EN 13141-8: 2021-02 - Entwurf | B11: Lüftung von Gebäuden - Leistungsprüfungen von Bauteilen/Produkten für die Lüftung von Wohnungen - Teil 8: Leistungsprüfung von mechanischen Zuluft- und Ablufteinheiten ohne Luftführung (einschließlich Wärmerückgewinnung); Deutsche und Englische Fassung prEN 13141-8:2021
B12: Dieser zweite Entwurf für die Überarbeitung der EN 13141-8 beinhaltet die Verfahren zur Leistungsprüfung von in Lüftungsanlagen von Wohnungen verwendeten Komponenten, mit denen die Leistungskenngrößen nach der Identifizierung in EN 13142 festgelegt werden können. Dieses Dokument enthält zahlreiche Verweisungen auf andere Europäische und Internationale Normen, die sich insbesondere mit anderen Merkmalen als den aerodynamischen befassen, wie beispielsweise den akustischen Merkmalen. In den meisten Fällen sind für die spezifische Verwendung in Lüftungsanlagen für Wohnungen zusätzliche Prüfungen oder zusätzliche Bedingungen angegeben. Die geplante Norm soll die Laborverfahren für und die Anforderungen an die Prüfung des aerodynamischen, wärmetechnischen und akustischen Verhaltens sowie die elektrische Leistung einer mechanischen Zuluft- und Ablufteinheit ohne Luftführung in einem einzelnen Raum festlegen. Es ist nicht Gegenstand des Dokuments die Qualität der Belüftung zu betrachten, sondern die Leistung der Geräte zu testen. Im Allgemeinen besteht ein Lüftungsgerät aus: - Zuluft- und Fortluftventilatoren; - Luftfiltern; - Luft/Luft-Wärmeübertrager oder Luftspeichermasse für die Wärmerückgewinnung aus der Fortluft; - Regel- und Steuereinrichtung; - Einlass- und Austrittsluftgitter. Derartige Ausrüstung kann in mehr als einer Baugruppe geliefert werden, wobei die einzelnen Baugruppen für die gemeinsame Verwendung ausgelegt sind. Derartige Ausrüstung kann Umschalt-Wärmeübertrager mit getrennten Zuluft- und Fortluftströmen enthalten. In bestimmten Fällen, zum Beispiel bei Umschalt-Lüftungsgeräten, kann erklärt werden, dass die Geräte so installiert werden können, dass sie mehr als einen Raum bedienen. Für die Zwecke dieses Dokuments werden diese Produkte in einem einzigen Raum beurteilt. Einheiten mit Luftführung, welche von EN 13141-7 abgedeckt werden, oder mit Wärmepumpen sind in diesem Dokument nicht behandelt. Die Sicherheitsanforderungen sind in EN 60335-2-40 und EN 60335-2-80 angegeben.
A13: DIN EN 13141-9:2008-10 | B13: Lüftung von Gebäuden - Leistungsprüfung von Bauteilen/Produkten für die Lüftung von Wohnungen - Teil 9: Feuchtegeregelte Zuluftdurchlässe; Deutsche Fassung EN 13141-9:2008
A14: DIN EN 13141-10: 2008-10 | B14: Lüftung von Gebäuden - Leistungsprüfung von Bauteilen/Produkten für die Lüftung von Wohnungen - Teil 10: Feuchtegeregelte Abluftdurchlässe; Deutsche Fassung EN 13141-10:2008
A15: DIN EN 13141-11: 2015-07 | B15: Lüftung von Gebäuden - Leistungsprüfung von Bauteilen/Produkten für die Lüftung von Wohnungen - Teil 11: Zuluftsysteme; Deutsche Fassung EN 13141-11:2015
